Body Name,Body,Service Level,Expense Type,Expense Code,Narrative,Date,Transaction Number,Amount,Capital and Revenue,Supplier Name,Supplier ID
South Ribble Council,http://statistics.data.gov.uk/doc/local-authority/30UN,Governance & Business Transf Mgnt,Training Expense-Course Fees,1405,Project Management Training - Project Management Fundamentals - 8 Days (8 x 1 day workshops),21/02/2020,0000451338,"10,800.00",Revenue,20/20 Business Insight Ltd,132987
South Ribble Council,http://statistics.data.gov.uk/doc/local-authority/30UN,Area 2 - Waste Transport/Eastern & Central Teams,Materials General,4040,"1 Brake Calabar, VO65 KPY, JFC13700 (NAME REDACTED)",05/02/2020,0000451297,483.32,Revenue,AA UK CV t/a Hydrair Truck & Trailer,132664
South Ribble Council,http://statistics.data.gov.uk/doc/local-authority/30UN,Area 2 - Waste Transport/Eastern & Central Teams,Materials General,4040,BRAKE CALIPER VU11HSZ JFC 14070,21/02/2020,0000452952,448.75,Revenue,AA UK CV t/a Hydrair Truck & Trailer,132664
South Ribble Council,http://statistics.data.gov.uk/doc/local-authority/30UN,Information Services,Capital Expenditure,C234,Offsite HCM Small Business Project Management by NAME REDACTED (SOW 235928) - 31/01/20 - as per activity report 1044381,21/02/2020,0000453087,950.00,Revenue,Access Group Ltd,132303
South Ribble Council,http://statistics.data.gov.uk/doc/local-authority/30UN,Area 2 - Waste Transport/Eastern & Central Teams,External Contractors Charges,4570,SPEC REPAIR AE14AYF JFC 14056,21/02/2020,0000453055,"1,976.41",Revenue,AEBI SCHMIDT UK LTD,00085672
South Ribble Council,http://statistics.data.gov.uk/doc/local-authority/30UN,Revenues Plus,Financial,4811,post office,12/02/2020,0000452693,620.87,Revenue,ALLPAY LTD,00122276
South Ribble Council,http://statistics.data.gov.uk/doc/local-authority/30UN,Revenues Plus,Financial,4811,paypoint,12/02/2020,0000452693,88.40,Revenue,ALLPAY LTD,00122276
South Ribble Council,http://statistics.data.gov.uk/doc/local-authority/30UN,Revenues Plus,Financial,4811,webconnect,12/02/2020,0000452693,46.00,Revenue,ALLPAY LTD,00122276
South Ribble Council,http://statistics.data.gov.uk/doc/local-authority/30UN,Regeneration,Other Misc,4851,Dementia Friendly customer service training,26/02/2020,0000452717,499.64,Revenue,Alzheimer`s Society,131953
South Ribble Council,http://statistics.data.gov.uk/doc/local-authority/30UN,Regeneration,Other Misc,4861,"Reprints of the following leaflets: - 2000 - Higher Penwortham Booklets, 2000 - Kingsfold Booklets, 2000 - Trams & Trains",26/02/2020,0000452895,810.00,Revenue,AMJ LTD (THE STATIONERY STORE),00096946
South Ribble Council,http://statistics.data.gov.uk/doc/local-authority/30UN,Housing,Professional Fees,4510,"South Ribble Borough Council Local Housing Needs and Demand Study Total Cost 21,414 To be paid over three invoicing points",28/02/2020,0000453127,"4,282.80",Revenue,arc4 Limited,132965
South Ribble Council,http://statistics.data.gov.uk/doc/local-authority/30UN,HR & Communications,Training Expense-Course Fees,1402,"NAME REDACTED TO ATTEND ` COUNCIL TAX - HOW THE SYSTEM WORKS` - VENUE MACDONALD HOTEL, MANCHESTER",10/02/2020,0000452620,150.00,Revenue,ARVATO GOVERNMENT SERVICES LTD,130314
South Ribble Council,http://statistics.data.gov.uk/doc/local-authority/30UN,HR & Communications,Training Expense-Course Fees,1402,"NAME REDACTED TO ATTEND ` COUNCIL TAX - HOW THE SYSTEM WORKS` - VENUE MACDONALD HOTEL, MANCHESTER",10/02/2020,0000452620,150.00,Revenue,ARVATO GOVERNMENT SERVICES LTD,130314
South Ribble Council,http://statistics.data.gov.uk/doc/local-authority/30UN,HR & Communications,Training Expense-Course Fees,1402,"NAME REDACTED TO ATTEND ` COUNCIL TAX - HOW THE SYSTEM WORKS` - VENUE MACDONALD HOTEL, MANCHESTER",10/02/2020,0000452620,150.00,Revenue,ARVATO GOVERNMENT SERVICES LTD,130314
South Ribble Council,http://statistics.data.gov.uk/doc/local-authority/30UN,HR & Communications,Training Expense-Course Fees,1402,NAME REDACTED - `LOCAL TAXATION RECOVERY & ENFORCEMENT - THE FULL STORY AT MACDONALD HOTEL MCR ON 30/1/2020,10/02/2020,0000452621,150.00,Revenue,ARVATO GOVERNMENT SERVICES LTD,130314
South Ribble Council,http://statistics.data.gov.uk/doc/local-authority/30UN,HR & Communications,Training Expense-Course Fees,1402,NAME REDACTED - `LOCAL TAXATION RECOVERY & ENFORCEMENT - THE FULL STORY AT MACDONALD HOTEL MCR ON 30/1/2020,10/02/2020,0000452621,150.00,Revenue,ARVATO GOVERNMENT SERVICES LTD,130314
South Ribble Council,http://statistics.data.gov.uk/doc/local-authority/30UN,HR & Communications,Training Expense-Course Fees,1402,NAME REDACTED - `LOCAL TAXATION RECOVERY & ENFORCEMENT - THE FULL STORY AT MACDONALD HOTEL MCR ON 30/1/2020,10/02/2020,0000452621,150.00,Revenue,ARVATO GOVERNMENT SERVICES LTD,130314
South Ribble Council,http://statistics.data.gov.uk/doc/local-authority/30UN,Housing,Cap Grant- Improve Grants,C570,DFG WORKS TO BATHROOM AT ADDRESS REDACTED AS PER QUOTE SUPPLIED FOLLOWING SRBC PLANS OF 4184.00,28/02/2020,0000453231,"3,734.00",Revenue,ASH BARN CONSTRUCTION LTD,00081278
South Ribble Council,http://statistics.data.gov.uk/doc/local-authority/30UN,Property Services,Rep & Maint Premises,2020,For 3 + 1 steel A/V toilet unit 16` for site at Penwortham Holme,21/02/2020,0000452825,562.20,Revenue,ASHTEAD PLANT HIRE CO LTD,00014245
South Ribble Council,http://statistics.data.gov.uk/doc/local-authority/30UN,Development Enterprise & Comm Mgnt,Training Expense-Course Fees,1403,Please supply Mental Health Training for South Ribble Borough Council as per NAME REDACTED,26/02/2020,0000453129,440.00,Revenue,Aspire 2b Training & Personal Development,133043
South Ribble Council,http://statistics.data.gov.uk/doc/local-authority/30UN,Democratic Services,Training Expense-Course Fees,1402,AEA General Conference 2020 NAME REDACTED 2nd - 5th February 2020,21/02/2020,0000452839,740.00,Revenue,ASSOC OF ELECTORAL ADMINISTRATORS LTD,00014449
South Ribble Council,http://statistics.data.gov.uk/doc/local-authority/30UN,Property Services,Rep & Maint Premises,2020,Annual Contract 2019/2020 for servicing the doors at  Moss Side Depot as per email  estimate 1251,21/02/2020,0000452732,393.33,Revenue,AVALON DOORS & AWNINGS LTD,131051
South Ribble Council,http://statistics.data.gov.uk/doc/local-authority/30UN,Property Services,Rep & Maint Premises,2020,Annual Contract 2019/2020 for servicing doors at Longton Brickcroft as per email estimate 1251,21/02/2020,0000452732,393.33,Revenue,AVALON DOORS & AWNINGS LTD,131051
South Ribble Council,http://statistics.data.gov.uk/doc/local-authority/30UN,Property Services,Rep & Maint Premises,2020,Annual Contract for service of doors at Leyland Market Various Stalls 2019/2020 as per email estimate 1251,21/02/2020,0000452732,393.34,Revenue,AVALON DOORS & AWNINGS LTD,131051
South Ribble Council,http://statistics.data.gov.uk/doc/local-authority/30UN,HR & Communications,Advertising,4848,DESIGN WORK FOR LEYLAND`S MUSIC IN THE PARK FESTIVAL,10/02/2020,0000452622,"1,000.00",Revenue,B & D PRINT SERVICES LTD,00015134
South Ribble Council,http://statistics.data.gov.uk/doc/local-authority/30UN,Regeneration,Capital Expenditure,C230,For the refurbishment of civic centre toilets and installation of showers as per tender.,26/02/2020,0000452896,"38,152.00",Revenue,Bambers Remedial Contractors Ltd,132736
South Ribble Council,http://statistics.data.gov.uk/doc/local-authority/30UN,Shared Financial Services,Peripherals,4248,,21/02/2020,0000451797,15.00,Revenue,Barclaycard Merchant Services,132157
South Ribble Council,http://statistics.data.gov.uk/doc/local-authority/30UN,Shared Financial Services,Peripherals,4248,,21/02/2020,0000451797,249.40,Revenue,Barclaycard Merchant Services,132157
South Ribble Council,http://statistics.data.gov.uk/doc/local-authority/30UN,Shared Financial Services,Peripherals,4248,,21/02/2020,0000452611,15.00,Revenue,Barclaycard Merchant Services,132157
South Ribble Council,http://statistics.data.gov.uk/doc/local-authority/30UN,Shared Financial Services,Peripherals,4248,,21/02/2020,0000452611,263.08,Revenue,Barclaycard Merchant Services,132157
South Ribble Council,http://statistics.data.gov.uk/doc/local-authority/30UN,Property Services,Repair Costs,4052,"3 days of work carried out to clear ADDRESS REDACTED. Materials 430, Time 600",21/02/2020,0000452948,"1,030.00",Revenue,BELEC ELECTRICAL LTD,130290
South Ribble Council,http://statistics.data.gov.uk/doc/local-authority/30UN,Property Services,Rep & Maint Premises,2020,Please supply and fit a light fitting to Leyland Market Sweet Stall to replace the faulty light fitting & to match the others as per NAME REDACTED,26/02/2020,0000453125,260.00,Revenue,BELEC ELECTRICAL LTD,130290
South Ribble Council,http://statistics.data.gov.uk/doc/local-authority/30UN,Area 2 - Waste Transport/Eastern & Central Teams,Advertising,4842,80x25 Blue/Brown Bin Contamination Tags.,21/02/2020,0000452968,712.00,Revenue,BHW PRINT GROUP LIMITED,133039
South Ribble Council,http://statistics.data.gov.uk/doc/local-authority/30UN,Development Enterprise & Comm Mgnt,Other Misc,485I,"Evolutive licence covering Jan-Dec 2020. Partner licence for the number of users, including partner licence costs. 1,600.00 +VAT for the year",10/02/2020,0000452623,"1,600.00",Revenue,BLACKBURN WITH DARWEN BOROUGH COUNCIL,00015723
South Ribble Council,http://statistics.data.gov.uk/doc/local-authority/30UN,Development Enterprise & Comm Mgnt,Other Misc,4851,"Christmas Lights Installations in Leyland Christmas 2019, maintenance and storage",21/02/2020,0000452685,"8,418.00",Revenue,Blackpool Council,131663
South Ribble Council,http://statistics.data.gov.uk/doc/local-authority/30UN,Area 2 - Waste Transport/Eastern & Central Teams,Operational Furniture & Equip,4010,workshop,12/02/2020,0000452704,631.50,Revenue,BOC GASES,00015147
South Ribble Council,http://statistics.data.gov.uk/doc/local-authority/30UN,Area 2 - Waste Transport/Eastern & Central Teams,Operational Furniture & Equip,4010,NWT,12/02/2020,0000452704,3.55,Revenue,BOC GASES,00015147
South Ribble Council,http://statistics.data.gov.uk/doc/local-authority/30UN,Area 2 - Waste Transport/Eastern & Central Teams,Other Misc,4851,regen,12/02/2020,0000452704,7.50,Revenue,BOC GASES,00015147
South Ribble Council,http://statistics.data.gov.uk/doc/local-authority/30UN,Development Enterprise & Comm Mgnt,Other Misc,4851,Venue hire Leyland Town Deal Board Meeting 27th January 2020 Meeting room hire on 27th January 4pm-6pm at 250.00 + VAT + Refreshments ,05/02/2020,0000452579,378.00,Revenue,BRITISH COMMERCIAL VEHICLE MUSEUM,00051897
South Ribble Council,http://statistics.data.gov.uk/doc/local-authority/30UN,HR & Communications,Training Expense-Course Fees,1402,NAME REDACTED TO ATTEND SPORTS LEADERS - TUTOR COURSE ON 28 JANUARY 2019 AT THE JOHN CHARLES CENTRE FOR SPORT,19/02/2020,0000453029,549.00,Revenue,British Sports Trust,133012
South Ribble Council,http://statistics.data.gov.uk/doc/local-authority/30UN,Area 3 - Parks/Leyland East West,Grounds Maint Cntrctrs Chgs,4657,10NO. BXPV 1539-RM MANCHESTER P.V. REMOVABLE BOLLARD COMPLETE WITH GROUND SOCKET WITH RED REFLECTIVE BAND,21/02/2020,0000452456,"1,900.00",Revenue,BROXAP LTD,00028736
South Ribble Council,http://statistics.data.gov.uk/doc/local-authority/30UN,Area 3 - Parks/Leyland East West,Grounds Maint Cntrctrs Chgs,4657,DELIVERY,21/02/2020,0000452456,70.00,Revenue,BROXAP LTD,00028736
South Ribble Council,http://statistics.data.gov.uk/doc/local-authority/30UN,Revenues Plus,Professional Fees,4520,EOY Webinars 2020,21/02/2020,0000453088,900.00,Revenue,CAPITA BUSINESS SERVICES LTD,00122179
South Ribble Council,http://statistics.data.gov.uk/doc/local-authority/30UN,Homelessness,Contractors Charges 5,5311,ADDRESS REDACTED (NAME REDACTED) � November 2019 8/11/19  30/11/19 22 days @ 33.83 per day = 849.86 + vat,21/02/2020,0000451676,849.86,Revenue,CHORLEY BOROUGH COUNCIL,00017352
South Ribble Council,http://statistics.data.gov.uk/doc/local-authority/30UN,Homelessness,Contractors Charges 5,5311,NAME REDACTED - ADDRESS REDACTED 1/12/19  12/12/19 12 days @ 38.63 = 463.56 + vat = 556.27,21/02/2020,0000452048,463.56,Revenue,CHORLEY BOROUGH COUNCIL,00017352
South Ribble Council,http://statistics.data.gov.uk/doc/local-authority/30UN,Planning,Other Misc,4851,Central Lancs Local Plan 1/3 share of costs 2018/19,21/02/2020,0000452722,"34,837.80",Revenue,CHORLEY BOROUGH COUNCIL,00017352
South Ribble Council,http://statistics.data.gov.uk/doc/local-authority/30UN,Shared Financial Services,External Contractors Charges,4570,Provision of Shared Financial and Procurement Services from 1 April 2019 - 31 March 2020,26/02/2020,0000453093,"465,000.00",Revenue,CHORLEY BOROUGH COUNCIL,00017352
South Ribble Council,http://statistics.data.gov.uk/doc/local-authority/30UN,Shared Financial Services,External Contractors Charges,4570,Provision of Shared Assistant Director of Finance 1st December 2019 - 31st March 2020,26/02/2020,0000453093,"3,000.00",Revenue,CHORLEY BOROUGH COUNCIL,00017352
South Ribble Council,http://statistics.data.gov.uk/doc/local-authority/30UN,Property Services,Rep & Maint Fixed Plant,2035,Please undertake works to the intruder alarm at Leyland museum as per quotation ref 685526,21/02/2020,0000452879,"1,676.00",Revenue,CHUBB LTD,00090625
South Ribble Council,http://statistics.data.gov.uk/doc/local-authority/30UN,Area 2 - Waste Transport/Eastern & Central Teams,Materials General,4040,A FRAME PO13UUM JFC 14041,21/02/2020,0000452724,442.83,Revenue,CICELEY COMMERCIALS LTD,00059381
South Ribble Council,http://statistics.data.gov.uk/doc/local-authority/30UN,Area 2 - Waste Transport/Eastern & Central Teams,Materials General,4040,"1 ad blue pump, PJ62 UCM, JFC14042 (NAME REDACTED)",21/02/2020,0000452818,795.20,Revenue,CICELEY COMMERCIALS LTD,00059381
South Ribble Council,http://statistics.data.gov.uk/doc/local-authority/30UN,HR & Communications,Payroll Suspense,1741,MEMBERSHIP SUBSCRIPTION RENEWAL FOR NAME REDACTED - 60705 - 1 APRIL 2020 - 31 MARCH 2021,28/02/2020,0000453213,250.00,Revenue,CIIA (CHARTERED INST OF INT AUDITORS),00024934
South Ribble Council,http://statistics.data.gov.uk/doc/local-authority/30UN,HR & Communications,Payroll Suspense,1741,MEMBERSHIP SUBSCRIPTION RENEWAL FOR NAME REDACTED - REFERENCE 57279 - 1 APRIL 2020 - 31 MARCH 2021,28/02/2020,0000453217,250.00,Revenue,CIIA (CHARTERED INST OF INT AUDITORS),00024934
South Ribble Council,http://statistics.data.gov.uk/doc/local-authority/30UN,Planning,Microfilming,4151,Micrographic equipment for 1 year,21/02/2020,0000452628,400.00,Revenue,Covergold Limited,131096
South Ribble Council,http://statistics.data.gov.uk/doc/local-authority/30UN,Revenues Plus,Postage,4291,Postage Jan 2020 to March 2020,10/02/2020,0000452605,391.25,Revenue,CRITIQOM,131053
South Ribble Council,http://statistics.data.gov.uk/doc/local-authority/30UN,Revenues Plus,Stationery,4130,End of year stationery,28/02/2020,0000452734,"2,884.00",Revenue,CRITIQOM,131053
South Ribble Council,http://statistics.data.gov.uk/doc/local-authority/30UN,Revenues Plus,Postage,4291,Postage Jan 2020 to March 2020,21/02/2020,0000452967,393.36,Revenue,CRITIQOM,131053
South Ribble Council,http://statistics.data.gov.uk/doc/local-authority/30UN,Revenues Plus,Postage,4291,Postage Jan 2020 to March 2020,21/02/2020,0000453096,537.60,Revenue,CRITIQOM,131053
South Ribble Council,http://statistics.data.gov.uk/doc/local-authority/30UN,HR & Communications,Balance Sheet,0030,BIKE PACKAGE PLUS HELMET AND OTHER GOODS FOR NAME REDACTED CERTIFICATE NUMBER:  REF REDACTED,28/02/2020,0000452888,"2,315.83",Revenue,CYCLESCHEME CO  UK,130237
South Ribble Council,http://statistics.data.gov.uk/doc/local-authority/30UN,HR & Communications,Balance Sheet,0030,helmets,28/02/2020,0000452888,30.00,Revenue,CYCLESCHEME CO  UK,130237
South Ribble Council,http://statistics.data.gov.uk/doc/local-authority/30UN,Legal,Legal,4821,TO PROVIDE ADVICE RE AN EMPLOYMENT MATTER,19/02/2020,0000452846,"2,950.00",Revenue,DAC BEACHCROFT LLP,131193
South Ribble Council,http://statistics.data.gov.uk/doc/local-authority/30UN,Property Services,Rep & Maint Premises,2020,"Maintenance 2019/2020 1 x  McSmart 240cr Industrial Water Chiller, 1 x McQuay Air Handling Unit date of visits to be agreed ",26/02/2020,0000453080,540.75,Revenue,DAIKIN APPLIED SERVICE,130324
South Ribble Council,http://statistics.data.gov.uk/doc/local-authority/30UN,Area 2 - Waste Transport/Eastern & Central Teams,Materials General,4040,COMPRESSOR HOSE VK09AHJ JFC 14089,21/02/2020,0000452731,140.42,Revenue,DENNIS EAGLE LTD,00019774
South Ribble Council,http://statistics.data.gov.uk/doc/local-authority/30UN,Area 2 - Waste Transport/Eastern & Central Teams,Materials General,4040,PRESSURE REDUCING VALVE VU11HSZ JFC 14070,21/02/2020,0000452731,252.67,Revenue,DENNIS EAGLE LTD,00019774
South Ribble Council,http://statistics.data.gov.uk/doc/local-authority/30UN,Area 2 - Waste Transport/Eastern & Central Teams,Materials General,4040,"1 BRAKE CHAMBERS, VO65 KPX, JFC14071 (NAME REDACTED)",21/02/2020,0000452736,331.45,Revenue,DENNIS EAGLE LTD,00019774
South Ribble Council,http://statistics.data.gov.uk/doc/local-authority/30UN,Area 2 - Waste Transport/Eastern & Central Teams,Materials General,4040,EXHAUST PLAN VU60HLE JFC 14074,21/02/2020,0000452849,7.51,Revenue,DENNIS EAGLE LTD,00019774
South Ribble Council,http://statistics.data.gov.uk/doc/local-authority/30UN,Area 2 - Waste Transport/Eastern & Central Teams,Materials General,4040,PRESSURE REDUCING VALVE VU60HLE JFC 14074,21/02/2020,0000452849,252.67,Revenue,DENNIS EAGLE LTD,00019774
South Ribble Council,http://statistics.data.gov.uk/doc/local-authority/30UN,Area 2 - Waste Transport/Eastern & Central Teams,Materials General,4040,FOOT BRAKE VALVE VU60HLE JFC 14074,21/02/2020,0000452849,217.32,Revenue,DENNIS EAGLE LTD,00019774
South Ribble Council,http://statistics.data.gov.uk/doc/local-authority/30UN,Area 2 - Waste Transport/Eastern & Central Teams,Materials General,4040,CAB LOCK SWITCH VU60HLE JFC 14074,21/02/2020,0000452849,59.75,Revenue,DENNIS EAGLE LTD,00019774
South Ribble Council,http://statistics.data.gov.uk/doc/local-authority/30UN,Regeneration,Capital Expenditure,C234,Please carry out Transport and relocated planters from Bamber Bridge (9 of) phase 2 as per NAME REDACTED to cover inv 781 dated 05/09/2019,21/02/2020,0000453033,"3,400.00",Revenue,DP STRUCTURES LTD,00120485
South Ribble Council,http://statistics.data.gov.uk/doc/local-authority/30UN,Regeneration,Capital Expenditure,C234,Please supply transport and relocate the planters from Bamber Bridge as per NAME REDACTED as per inv dated 10.7.2019,21/02/2020,0000453034,"3,800.00",Revenue,DP STRUCTURES LTD,00120485
South Ribble Council,http://statistics.data.gov.uk/doc/local-authority/30UN,Shared Assurance Services,Agency Fees,1121,Provision of Temporary Auditor,05/02/2020,0000452446,"1,501.95",Revenue,Eden Brown,132982
South Ribble Council,http://statistics.data.gov.uk/doc/local-authority/30UN,Shared Assurance Services,Agency Fees,1121,Provision of Temporary Auditor,21/02/2020,0000452708,"1,572.63",Revenue,Eden Brown,132982
South Ribble Council,http://statistics.data.gov.uk/doc/local-authority/30UN,Information Services,Peripherals,4260,charges 1/2/20,14/02/2020,0000452809,"3,067.26",Revenue,EE Ltd,131653
South Ribble Council,http://statistics.data.gov.uk/doc/local-authority/30UN,Information Services,Peripherals,4260,non vat items,14/02/2020,0000452809,42.88,Revenue,EE Ltd,131653
South Ribble Council,http://statistics.data.gov.uk/doc/local-authority/30UN,Information Services,Peripherals,4260,01 feb 2020,19/02/2020,0000452853,"3,067.26",Revenue,EE Ltd,131653
South Ribble Council,http://statistics.data.gov.uk/doc/local-authority/30UN,Information Services,Peripherals,4260,non vat,19/02/2020,0000452853,42.88,Revenue,EE Ltd,131653
South Ribble Council,http://statistics.data.gov.uk/doc/local-authority/30UN,Information Services,Peripherals,4244,3 x Samsung Galaxy A40 phones @ 185 each,21/02/2020,0000453078,555.00,Revenue,EE Payment Processing,131950
South Ribble Council,http://statistics.data.gov.uk/doc/local-authority/30UN,Property Services,Capital Expenditure,C230,For the removal of the electricity supply to ADDRESSES REDACTED as per your reference 5500167381/A,26/02/2020,0000452943,"1,306.36",Revenue,ELECTRICITY NORTH WEST LTD,00120142
South Ribble Council,http://statistics.data.gov.uk/doc/local-authority/30UN,Area 2 - Waste Transport/Eastern & Central Teams,Printing,4127,SUPPLY & DELIVERY OF GARDEN WASTE PERMITS AS PER QUOTE 23.8.19 TO COVER JAN TO DEC 2020,21/02/2020,0000452831,"8,269.75",Revenue,Euro Print Labels,132447
South Ribble Council,http://statistics.data.gov.uk/doc/local-authority/30UN,Area 2 - Waste Transport/Eastern & Central Teams,External Contractors Charges,4570,Additional clinical waste collections - January 2020,12/02/2020,0000452686,461.36,Revenue,FCC Environment Services (UK) Ltd,131612
South Ribble Council,http://statistics.data.gov.uk/doc/local-authority/30UN,Area 2 - Waste Transport/Eastern & Central Teams,Balance Sheet,0030,clinical retention,12/02/2020,0000452686,-23.07,Revenue,FCC Environment Services (UK) Ltd,131612
South Ribble Council,http://statistics.data.gov.uk/doc/local-authority/30UN,Area 2 - Waste Transport/Eastern & Central Teams,External Contractors Charges,4570,Residual waste collections - January 2020,21/02/2020,0000453036,"45,660.96",Revenue,FCC Environment Services (UK) Ltd,131612
South Ribble Council,http://statistics.data.gov.uk/doc/local-authority/30UN,Area 2 - Waste Transport/Eastern & Central Teams,External Contractors Charges,4570,Dry recyclable non-terraced January 2020,21/02/2020,0000453036,"46,746.51",Revenue,FCC Environment Services (UK) Ltd,131612
South Ribble Council,http://statistics.data.gov.uk/doc/local-authority/30UN,Area 2 - Waste Transport/Eastern & Central Teams,External Contractors Charges,4570,Dry recycled terraced - January 2020,21/02/2020,0000453036,"2,224.41",Revenue,FCC Environment Services (UK) Ltd,131612
South Ribble Council,http://statistics.data.gov.uk/doc/local-authority/30UN,Area 2 - Waste Transport/Eastern & Central Teams,External Contractors Charges,4570,Organic waste - non terraced January 2020,21/02/2020,0000453036,"32,371.11",Revenue,FCC Environment Services (UK) Ltd,131612
South Ribble Council,http://statistics.data.gov.uk/doc/local-authority/30UN,Area 2 - Waste Transport/Eastern & Central Teams,External Contractors Charges,4570,Schedule 2 properties - January 2020,21/02/2020,0000453036,"1,860.35",Revenue,FCC Environment Services (UK) Ltd,131612
South Ribble Council,http://statistics.data.gov.uk/doc/local-authority/30UN,Area 2 - Waste Transport/Eastern & Central Teams,External Contractors Charges,4570,Commercial waste collections - January 2020,21/02/2020,0000453036,"7,249.95",Revenue,FCC Environment Services (UK) Ltd,131612
South Ribble Council,http://statistics.data.gov.uk/doc/local-authority/30UN,Area 2 - Waste Transport/Eastern & Central Teams,External Contractors Charges,4570,Bulky waste collections - January 2020,21/02/2020,0000453036,"1,005.57",Revenue,FCC Environment Services (UK) Ltd,131612
South Ribble Council,http://statistics.data.gov.uk/doc/local-authority/30UN,Area 2 - Waste Transport/Eastern & Central Teams,External Contractors Charges,4570,WEEE collections - January 2020,21/02/2020,0000453036,377.48,Revenue,FCC Environment Services (UK) Ltd,131612
South Ribble Council,http://statistics.data.gov.uk/doc/local-authority/30UN,Area 2 - Waste Transport/Eastern & Central Teams,External Contractors Charges,4570,Clinical waste collections - January 2020,21/02/2020,0000453036,643.04,Revenue,FCC Environment Services (UK) Ltd,131612
South Ribble Council,http://statistics.data.gov.uk/doc/local-authority/30UN,Area 2 - Waste Transport/Eastern & Central Teams,External Contractors Charges,4570,Replacement bins - January 2020,21/02/2020,0000453036,"5,000.00",Revenue,FCC Environment Services (UK) Ltd,131612
South Ribble Council,http://statistics.data.gov.uk/doc/local-authority/30UN,Area 2 - Waste Transport/Eastern & Central Teams,External Contractors Charges,4570,Additional properties - January 2020,21/02/2020,0000453036,"2,941.70",Revenue,FCC Environment Services (UK) Ltd,131612
South Ribble Council,http://statistics.data.gov.uk/doc/local-authority/30UN,Area 2 - Waste Transport/Eastern & Central Teams,Balance Sheet,0030,retention refuse,21/02/2020,0000453036,"-2,986.95",Revenue,FCC Environment Services (UK) Ltd,131612
South Ribble Council,http://statistics.data.gov.uk/doc/local-authority/30UN,Area 2 - Waste Transport/Eastern & Central Teams,Balance Sheet,0030,retention recycling,21/02/2020,0000453036,"-4,067.10",Revenue,FCC Environment Services (UK) Ltd,131612
South Ribble Council,http://statistics.data.gov.uk/doc/local-authority/30UN,Area 2 - Waste Transport/Eastern & Central Teams,External Contractors Charges,4570,Additional WEEE collections January 2020,21/02/2020,0000453037,231.39,Revenue,FCC Environment Services (UK) Ltd,131612
South Ribble Council,http://statistics.data.gov.uk/doc/local-authority/30UN,Area 2 - Waste Transport/Eastern & Central Teams,External Contractors Charges,4570,Additional bulky waste collections - January 2020,21/02/2020,0000453037,538.67,Revenue,FCC Environment Services (UK) Ltd,131612
South Ribble Council,http://statistics.data.gov.uk/doc/local-authority/30UN,Area 2 - Waste Transport/Eastern & Central Teams,Balance Sheet,0030,waste retention,21/02/2020,0000453037,-38.50,Revenue,FCC Environment Services (UK) Ltd,131612
South Ribble Council,http://statistics.data.gov.uk/doc/local-authority/30UN,Healthy Communities,Consultancy Fees,4541,Please provide consultancy work for the future management of the Leisure Sites as requested by NAME REDACTED,21/02/2020,0000453040,"3,937.50",Revenue,FMG Consulting Ltd,133044
South Ribble Council,http://statistics.data.gov.uk/doc/local-authority/30UN,Development Enterprise & Comm Mgnt,Capital Expenditure,C230,Group support re materials/maintenance of Leyland Railway Station @ 274.00,26/02/2020,0000453141,274.00,Revenue,Friends of Leyland Station,132233
South Ribble Council,http://statistics.data.gov.uk/doc/local-authority/30UN,Area 2 - Waste Transport/Eastern & Central Teams,Materials General,4040,6 X HIGH PRESSURE FILTER G029,05/02/2020,0000452564,671.84,Revenue,GEESINK NORBA LTD,132941
South Ribble Council,http://statistics.data.gov.uk/doc/local-authority/30UN,Property Services,Professional Fees,4510,Professional services relating to Leyland Test Track,21/02/2020,0000453043,"5,000.00",Revenue,Gerald Eve LLP,133018
South Ribble Council,http://statistics.data.gov.uk/doc/local-authority/30UN,Shared Financial Services,Professional Fees,4512,2018/19 External Audit - Grant Claim. Certification of Housing Benefit Subsidy Claim.,12/02/2020,0000451652,"9,750.00",Revenue,Grant Thornton UK LLP,130718
South Ribble Council,http://statistics.data.gov.uk/doc/local-authority/30UN,Shared Financial Services,Professional Fees,4512,South Ribble Borough Council Main Audit Fee 2019-20,12/02/2020,0000451772,"8,455.25",Revenue,Grant Thornton UK LLP,130718
South Ribble Council,http://statistics.data.gov.uk/doc/local-authority/30UN,Revenues Plus,Professional Fees,4510,Bankruptcy and charging order costs,21/02/2020,0000452890,750.00,Revenue,Greenhalgh Kerr,132061
South Ribble Council,http://statistics.data.gov.uk/doc/local-authority/30UN,Revenues Plus,Professional Fees,4510,Court Fees,21/02/2020,0000452890,174.00,Revenue,Greenhalgh Kerr,132061
South Ribble Council,http://statistics.data.gov.uk/doc/local-authority/30UN,Revenues Plus,Professional Fees,4510,Land Registry Fee,21/02/2020,0000452890,12.00,Revenue,Greenhalgh Kerr,132061
South Ribble Council,http://statistics.data.gov.uk/doc/local-authority/30UN,Area 2 - Waste Transport/Eastern & Central Teams,Materials General,4040,Filters for stores,21/02/2020,0000453039,461.73,Revenue,H & J SERVICES LTD,00114446
South Ribble Council,http://statistics.data.gov.uk/doc/local-authority/30UN,Development Enterprise & Comm Mgnt,Other Misc,4851,CEO Business Breakfast Catering for CEO business breakfast on Friday  31st January 2020 @ 900,12/02/2020,0000452705,900.00,Revenue,Hallmark Hotel Preston Leyland,00090117
South Ribble Council,http://statistics.data.gov.uk/doc/local-authority/30UN,Neighbourhood Admin & Support,Materials General,4040,BLACK SACKS `KEEP SOUTH RIBBLE TIDY` IN WHITE - 455x735x990-25 MICRON GPS BI MODAL SUPER PLUS - 250 PER BOX,19/02/2020,0000452999,"3,687.30",Revenue,HARRISONS PACKAGING LTD,00024099
South Ribble Council,http://statistics.data.gov.uk/doc/local-authority/30UN,Planning,Publications,4140,Corporate Planning Subscription Renewal of corporate planning subscription for 5 users for period of 1 January 2020 - 31 December 2020,21/02/2020,0000452635,"1,000.00",Revenue,HAYMARKET MEDIA GROUP LTD,00023346
South Ribble Council,http://statistics.data.gov.uk/doc/local-authority/30UN,Shared Assurance Services,Agency Fees,1121,Internal Auditor -NAME REDACTED for week ending period 8/11/19 - 27/03/19 ,05/02/2020,0000452336,"1,547.41",Revenue,Hays Specialist Recruitment Ltd,132288
South Ribble Council,http://statistics.data.gov.uk/doc/local-authority/30UN,Shared Assurance Services,Agency Fees,1121,NAME REDACTED - One off payment to HAYS for Introduction fee,05/02/2020,0000452380,"6,750.00",Revenue,Hays Specialist Recruitment Ltd,132288
South Ribble Council,http://statistics.data.gov.uk/doc/local-authority/30UN,Area 3 - Parks/Leyland East West,Capital Expenditure,C230,"Design, supply and installation of 2 No 3 cubicle semi-automatic toilet block including pressure washers and H2 control systems",12/02/2020,0000452298,"2,362.17",Revenue,Healthmatic Limited,132565
South Ribble Council,http://statistics.data.gov.uk/doc/local-authority/30UN,HR & Communications,Peripherals,4242,200 x Mifare NXP Proximity Cards 32 Bit 10 UID,19/02/2020,0000452739,448.50,Revenue,HFX LTD,00023728
South Ribble Council,http://statistics.data.gov.uk/doc/local-authority/30UN,Regeneration,Other Misc,4851,Photography for the Community Awards on Friday 24th January 2020,26/02/2020,0000452743,250.00,Revenue,IAN ROBINSON,132041
South Ribble Council,http://statistics.data.gov.uk/doc/local-authority/30UN,Information Services,Peripherals,4248,Quotation Reference: REDACTED LALM Lalpac Enterprise Server Edition maintenance for period 18/03/20 - 17/03/21,21/02/2020,0000453038,"5,038.34",Revenue,IDOX PLC,00104485
South Ribble Council,http://statistics.data.gov.uk/doc/local-authority/30UN,Information Services,Peripherals,4248,"Uniform annual Support & Maintenance renewal for period 01/04/20 - 31/03/21, as per quote ref:  REDACTED",21/02/2020,0000453112,"60,448.91",Revenue,IDOX PLC,00104485
South Ribble Council,http://statistics.data.gov.uk/doc/local-authority/30UN,Development Enterprise & Comm Mgnt,Other Misc,485A,"Place dashboard licence renewal for 1/2/2020  31/1/2021 8000+VAT. For Leyland, Lostock Hall, Bamber Bridge, Walton le Dale, Penwortham",21/02/2020,0000452744,"8,000.00",Revenue,Indestinate Ltd,132730
South Ribble Council,http://statistics.data.gov.uk/doc/local-authority/30UN,Information Services,Capital Expenditure,C234,50 x additional Briefing Book Viewer licences including maintenance and support 5 days InPhase remote implementation services,12/02/2020,0000451559,"32,247.00",Revenue,InPhase Limited,132452
South Ribble Council,http://statistics.data.gov.uk/doc/local-authority/30UN,Regeneration,Other Misc,4851,People Time Agreement 1217MT5482 � Am 3 Expenses incurred by NAME REDACTED � September 2019,26/02/2020,0000452852,293.32,Revenue,InPhase Limited,132452
South Ribble Council,http://statistics.data.gov.uk/doc/local-authority/30UN,Information Services,Peripherals,4248,Provision of a Maintained Hosted Server service for period 26/04/20 - 25/04/21,19/02/2020,0000452889,"2,000.00",Revenue,InPhase Limited,132452
South Ribble Council,http://statistics.data.gov.uk/doc/local-authority/30UN,HR & Communications,Training Expense-Course Fees,1402,"NAME REDACTED TO ATTEND PROFESSIONAL LICENSING PRACTITIONERS QUAL 10 - 13 MAR 20 AT THE TICKLED TROUT,M PRESTON",19/02/2020,0000452848,561.00,Revenue,INSTITUTE OF LICENSING EVENTS LTD,00118125
South Ribble Council,http://statistics.data.gov.uk/doc/local-authority/30UN,Area 3 - Parks/Leyland East West,Grounds Maint Cntrctrs Chgs,4657,"ADDITIONAL DETAILS AND AMENDMENT TO FLY-THROUGH, HURST GRANGE PARK COACH HOUSE",14/02/2020,0000452340,750.00,Revenue,Ivan Wilson Architect,133006
South Ribble Council,http://statistics.data.gov.uk/doc/local-authority/30UN,Property Services,Professional Fees,4510,Professional services to forfeit NAME AND ADDRESS REDACTED,10/02/2020,0000452669,451.00,Revenue,JACOBS,00049252
South Ribble Council,http://statistics.data.gov.uk/doc/local-authority/30UN,Area 2 - Waste Transport/Eastern & Central Teams,Materials General,4040,STEERING BOX PO13UUM JFC 14128,28/02/2020,0000453243,"1,000.00",Revenue,JAMES HART (CHORLEY) LTD,133048
South Ribble Council,http://statistics.data.gov.uk/doc/local-authority/30UN,Development Enterprise & Comm Mgnt,Rep & Maint Premises,2020,"Annual Contract for 2019 - 2020 for the maintenance of the Trend BMS HVAC 4 x day visits (TBA)  June, Sept, Dec, March - at the Civic Centre",21/02/2020,0000452741,400.00,Revenue,JBC CONTROL SYSTEM,130816
South Ribble Council,http://statistics.data.gov.uk/doc/local-authority/30UN,Housing,Cap Grant- Improve Grants,C570,DFG WORKS TO BATHROOM AT ADDRESS REDACTED AS PER QUOTE SUPPLIED OF 5295.00 PER SRBC SPECIFICATION,05/02/2020,0000451744,"3,365.00",Revenue,Keith Wright Plumbing - Heating - Gas Engineer,132868
South Ribble Council,http://statistics.data.gov.uk/doc/local-authority/30UN,Shared Financial Services,Professional Fees,4520,Mercers Actuarial services - Accounting Schedules 31st March 19 allowing for detailed McCloud adjustment Impact,14/02/2020,0000450955,"1,500.00",Revenue,LANCASHIRE COUNTY COUNCIL PENSION FUND,130639
South Ribble Council,http://statistics.data.gov.uk/doc/local-authority/30UN,Area 2 - Waste Transport/Eastern & Central Teams,Materials General,4040,3000LT X BULK AD BLUE @ 0.22,21/02/2020,0000452959,660.00,Revenue,LANCASHIRE OILS LTD,131167
South Ribble Council,http://statistics.data.gov.uk/doc/local-authority/30UN,Area 2 - Waste Transport/Eastern & Central Teams,Waste Disposal Charges,5112,December 2019 - Incineration of Clinical Waste,10/02/2020,0000452709,344.71,Revenue,LANCASHIRE TEACHING FT,00120715
South Ribble Council,http://statistics.data.gov.uk/doc/local-authority/30UN,Legal,Other Local Authorities,4530,LAND CHARGES - AUGUST 2019,10/02/2020,0000452670,957.00,Revenue,LANCS COUNTY COUNCIL,00041645
South Ribble Council,http://statistics.data.gov.uk/doc/local-authority/30UN,Housing,Cap Grant- Improve Grants,C570,DFG WORKS TO SUPPLY AND INSTALL 2 HOISTS AT ADDRESS REDACTED AS PER QUOTE SUPPLIED VIA LCC OF 3620.40,12/02/2020,0000452742,"3,620.40",Revenue,LANCS COUNTY COUNCIL,00041645
South Ribble Council,http://statistics.data.gov.uk/doc/local-authority/30UN,Housing,Cap Grant- Improve Grants,C570,DFG WORKS TO SUPPLY AND INSTALL A GEBERIT TOILET AT ADDRESS REDACTED AS PER QUOTE SUPPLIED COST 3725,19/02/2020,0000453048,"3,725.00",Revenue,LANCS COUNTY COUNCIL,00041645
South Ribble Council,http://statistics.data.gov.uk/doc/local-authority/30UN,Information Services,Peripherals,4248,GIS Services Contract for period 01/04/19 - 31/03/20,21/02/2020,0000453077,"7,834.14",Revenue,LANCS COUNTY COUNCIL,00041645
South Ribble Council,http://statistics.data.gov.uk/doc/local-authority/30UN,Area 2 - Waste Transport/Eastern & Central Teams,Materials General,4040,FILTER KIT YD19AYK JFC 14075,14/02/2020,0000452820,282.50,Revenue,LANCS DAF,00026424
South Ribble Council,http://statistics.data.gov.uk/doc/local-authority/30UN,Area 2 - Waste Transport/Eastern & Central Teams,Materials General,4040,20L OIL,14/02/2020,0000452820,72.54,Revenue,LANCS DAF,00026424
South Ribble Council,http://statistics.data.gov.uk/doc/local-authority/30UN,Area 2 - Waste Transport/Eastern & Central Teams,Materials General,4040,FILTER KIT & OIL YD19ATK JFC 14124,21/02/2020,0000453057,376.73,Revenue,LANCS DAF,00026424
South Ribble Council,http://statistics.data.gov.uk/doc/local-authority/30UN,Area 2 - Waste Transport/Eastern & Central Teams,Materials General,4040,SERVICE KIT YD19AUO JFC 14196,28/02/2020,0000453165,376.73,Revenue,LANCS DAF,00026424
South Ribble Council,http://statistics.data.gov.uk/doc/local-authority/30UN,Area 2 - Waste Transport/Eastern & Central Teams,Materials General,4040,AIRBAG YD19ATK JFC 14124,28/02/2020,0000453209,250.00,Revenue,LANCS DAF,00026424
South Ribble Council,http://statistics.data.gov.uk/doc/local-authority/30UN,Area 2 - Waste Transport/Eastern & Central Teams,Materials General,4040,SEAT BELT YD19ATK JFC 14124,28/02/2020,0000453209,89.20,Revenue,LANCS DAF,00026424
South Ribble Council,http://statistics.data.gov.uk/doc/local-authority/30UN,Regeneration,Professional Fees,4510,Tree work on the Old Railway Line,10/02/2020,0000452640,"5,200.00",Revenue,LANCS WILDLIFE TRUST,00027009
South Ribble Council,http://statistics.data.gov.uk/doc/local-authority/30UN,Area 3 - Parks/Leyland East West,Capital Expenditure,C230,REPLACEMENT OF LOG ENDINGS AT WORDEN AND FARINGTON PARK PLAYGROUNDS,21/02/2020,0000452641,"18,871.13",Revenue,LANDSCAPE ENGINEERING LIMITED,130416
South Ribble Council,http://statistics.data.gov.uk/doc/local-authority/30UN,Regeneration,Other Misc,4851,"For the work for the ``Longton Online`` project second part, as per the business proposal and as agreed.",14/02/2020,0000452749,"3,125.00",Revenue,Laptopbits Ltd,132476
South Ribble Council,http://statistics.data.gov.uk/doc/local-authority/30UN,Property Services,Rep & Maint Premises,2020,Please attend Pope Lane Shops ( Hawksbury Drive) and fit Galvanised railings with lockable gate to the rear of shops due to vandalism -,21/02/2020,0000452874,"1,250.00",Revenue,Leyland Lane Wrought Iron Gates & Railings,132012
South Ribble Council,http://statistics.data.gov.uk/doc/local-authority/30UN,Regeneration,Other Misc,4861,100 `street` poppies for Leyland and Farington Forum,26/02/2020,0000453049,500.00,Revenue,LOSTOCK HALL ROYAL BRITISH LEGION BRANCH,131308
South Ribble Council,http://statistics.data.gov.uk/doc/local-authority/30UN,Area 3 - Parks/Leyland East West,Grounds Maint Cntrctrs Chgs,4657,20T 20MM - DUST LIMESTOME,21/02/2020,0000452907,396.00,Revenue,M C & M A STEWART HAULAGE LTD,00035567
South Ribble Council,http://statistics.data.gov.uk/doc/local-authority/30UN,Area 3 - Parks/Leyland East West,Grounds Maint Cntrctrs Chgs,4657,20T 20MM - DUST GRANITE,21/02/2020,0000452907,392.04,Revenue,M C & M A STEWART HAULAGE LTD,00035567
South Ribble Council,http://statistics.data.gov.uk/doc/local-authority/30UN,Area 3 - Parks/Leyland East West,External Contractors Charges,4570,2 inch petrol water model CHS2e plus associated hoses and connectors. 5m ridged and 20m lay flat,14/02/2020,0000452801,422.02,Revenue,MACHINE MART LTD,00044668
South Ribble Council,http://statistics.data.gov.uk/doc/local-authority/30UN,Housing,Cap Grant- Improve Grants,C570,"DFG WORKS FOR LEVEL ACCESS BATHROOM AT ADDRESS REDACTED. New progress property, 50% to be paid via the grant is 2445.71",12/02/2020,0000452751,"2,445.71",Revenue,MAHONEY CONTRACTORS LTD,131271
South Ribble Council,http://statistics.data.gov.uk/doc/local-authority/30UN,Property Services,Rep & Maint Premises,2020,Please carry out works as per quote 1008 dated 12/12/2019  as per NAME REDACTED,14/02/2020,0000452631,650.00,Revenue,Mick Bamber,132873
South Ribble Council,http://statistics.data.gov.uk/doc/local-authority/30UN,Property Services,Capital Expenditure,C230,Please attend worden park to repair the boiler house roof.,10/02/2020,0000452643,900.00,Revenue,Mick Bamber,132873
South Ribble Council,http://statistics.data.gov.uk/doc/local-authority/30UN,Property Services,Capital Expenditure,C230,Civic Centre works as per NAME REDACTED - Power wash all roof area -Fix permanent weighted hand rail -Erected by Approved scaffolding,10/02/2020,0000452644,"10,000.00",Revenue,Mick Bamber,132873
South Ribble Council,http://statistics.data.gov.uk/doc/local-authority/30UN,Area 2 - Waste Transport/Eastern & Central Teams,External Contractors Charges,4570,RECOVERY VK09AHJ JFC 14094,28/02/2020,0000453207,262.00,Revenue,MILLERS OF LONGTON LTD,00028642
South Ribble Council,http://statistics.data.gov.uk/doc/local-authority/30UN,Area 1 - Penwortham Western Parishes,Professional Fees,4521,PROVISION OF STRAY DOG SERVICE JANUARY 2020,19/02/2020,0000453052,278.41,Revenue,MORNINGSIDE KENNELS,00067755
South Ribble Council,http://statistics.data.gov.uk/doc/local-authority/30UN,Area 1 - Penwortham Western Parishes,Professional Fees,4521,PROVISION OF STRAY DOG SERVICE DECEMBER 2019,26/02/2020,0000453115,528.94,Revenue,MORNINGSIDE KENNELS,00067755
South Ribble Council,http://statistics.data.gov.uk/doc/local-authority/30UN,Environmental Health,Licence Fees,488B,,10/02/2020,0000452440,"1,375.00",Revenue,MOSS SIDE COMMUNITY FORUM,00098724
South Ribble Council,http://statistics.data.gov.uk/doc/local-authority/30UN,Housing,Cap Grant- Improve Grants,C570,DFG WORKS TO COMPLETE BUILDING WORKS AT NAME REDACTED AS PER SRBC PLANS CUSTOMER 2262.58 GRANT 21416.42,19/02/2020,0000452932,"21,416.42",Revenue,MSG Building and Construction Ltd,132375
South Ribble Council,http://statistics.data.gov.uk/doc/local-authority/30UN,Information Services,Peripherals,4241,1 x Apple 11`` iPad Pro @ 778.00 and 1 x Apple iPad Smart Keyboard Folio @ 155.00,28/02/2020,0000453175,933.00,Revenue,MYPREMIER LTD,130091
South Ribble Council,http://statistics.data.gov.uk/doc/local-authority/30UN,Area 2 - Waste Transport/Eastern & Central Teams,Contract Hire & Lease Costs,3212,Hire of RCV VO61 YVE On hire 31.1.20 - 10.2.20,28/02/2020,0000453143,"1,100.00",Revenue,NAYLORS TRANSPORT (LEYLAND) ltd,00114828
South Ribble Council,http://statistics.data.gov.uk/doc/local-authority/30UN,Area 2 - Waste Transport/Eastern & Central Teams,Contract Hire & Lease Costs,3212,HIRE OF RCV FROM 19/12/19 - 24/12/2019 (NO CHARGE FOR XMAS DAY),28/02/2020,0000453144,600.00,Revenue,NAYLORS TRANSPORT (LEYLAND) ltd,00114828
South Ribble Council,http://statistics.data.gov.uk/doc/local-authority/30UN,Area 2 - Waste Transport/Eastern & Central Teams,External Contractors Charges,4570,Service Wash 3.12.19 YD19 AUT - JFC13920,28/02/2020,0000453145,65.00,Revenue,NAYLORS TRANSPORT (LEYLAND) ltd,00114828
South Ribble Council,http://statistics.data.gov.uk/doc/local-authority/30UN,Area 2 - Waste Transport/Eastern & Central Teams,External Contractors Charges,4570,Service Wash 5.12.19 YA19 NKC - JFC13921,28/02/2020,0000453145,65.00,Revenue,NAYLORS TRANSPORT (LEYLAND) ltd,00114828
South Ribble Council,http://statistics.data.gov.uk/doc/local-authority/30UN,Area 2 - Waste Transport/Eastern & Central Teams,External Contractors Charges,4570,Service Wash 12.12.19 YD19 ATY - JFC13922,28/02/2020,0000453145,65.00,Revenue,NAYLORS TRANSPORT (LEYLAND) ltd,00114828
South Ribble Council,http://statistics.data.gov.uk/doc/local-authority/30UN,Area 2 - Waste Transport/Eastern & Central Teams,External Contractors Charges,4570,Service Wash 19.12.19 YA19 NKD - JFC13923,28/02/2020,0000453145,65.00,Revenue,NAYLORS TRANSPORT (LEYLAND) ltd,00114828
South Ribble Council,http://statistics.data.gov.uk/doc/local-authority/30UN,Area 2 - Waste Transport/Eastern & Central Teams,External Contractors Charges,4570,Service Wash 2.1.20 YD19 ATK - JFC13924,28/02/2020,0000453145,65.00,Revenue,NAYLORS TRANSPORT (LEYLAND) ltd,00114828
South Ribble Council,http://statistics.data.gov.uk/doc/local-authority/30UN,Area 2 - Waste Transport/Eastern & Central Teams,External Contractors Charges,4570,Service Wash YD19 AUO JFC14148,28/02/2020,0000453146,65.00,Revenue,NAYLORS TRANSPORT (LEYLAND) ltd,00114828
South Ribble Council,http://statistics.data.gov.uk/doc/local-authority/30UN,Area 2 - Waste Transport/Eastern & Central Teams,External Contractors Charges,4570,Service Wash YD19 AUT JFC14149,28/02/2020,0000453146,65.00,Revenue,NAYLORS TRANSPORT (LEYLAND) ltd,00114828
South Ribble Council,http://statistics.data.gov.uk/doc/local-authority/30UN,Area 2 - Waste Transport/Eastern & Central Teams,External Contractors Charges,4570,Service Wash YA19 NKC JFC14150,28/02/2020,0000453146,65.00,Revenue,NAYLORS TRANSPORT (LEYLAND) ltd,00114828
South Ribble Council,http://statistics.data.gov.uk/doc/local-authority/30UN,Area 2 - Waste Transport/Eastern & Central Teams,External Contractors Charges,4570,Service Wash YD19 AUM JFC14151,28/02/2020,0000453146,65.00,Revenue,NAYLORS TRANSPORT (LEYLAND) ltd,00114828
South Ribble Council,http://statistics.data.gov.uk/doc/local-authority/30UN,Area 2 - Waste Transport/Eastern & Central Teams,External Contractors Charges,4570,Service Wash YD19 ATY JFC14152,28/02/2020,0000453146,65.00,Revenue,NAYLORS TRANSPORT (LEYLAND) ltd,00114828
South Ribble Council,http://statistics.data.gov.uk/doc/local-authority/30UN,Area 2 - Waste Transport/Eastern & Central Teams,External Contractors Charges,4570,Service Wash YA19 NGN JFC14153,28/02/2020,0000453146,65.00,Revenue,NAYLORS TRANSPORT (LEYLAND) ltd,00114828
South Ribble Council,http://statistics.data.gov.uk/doc/local-authority/30UN,Area 2 - Waste Transport/Eastern & Central Teams,External Contractors Charges,4570,Service Wash YA19 NJZ JFC14154,28/02/2020,0000453146,65.00,Revenue,NAYLORS TRANSPORT (LEYLAND) ltd,00114828
South Ribble Council,http://statistics.data.gov.uk/doc/local-authority/30UN,Area 2 - Waste Transport/Eastern & Central Teams,Contract Hire & Lease Costs,3212,HIRE OF RCV - 27.12.19 - 31.12.19 (NO CHARGE FOR BOXING DAY & NEW YEARS DAY),28/02/2020,0000453148,500.00,Revenue,NAYLORS TRANSPORT (LEYLAND) ltd,00114828
South Ribble Council,http://statistics.data.gov.uk/doc/local-authority/30UN,Area 2 - Waste Transport/Eastern & Central Teams,External Contractors Charges,4570,Service Wash VO65 KPY JFC14139,28/02/2020,0000453149,65.00,Revenue,NAYLORS TRANSPORT (LEYLAND) ltd,00114828
South Ribble Council,http://statistics.data.gov.uk/doc/local-authority/30UN,Area 2 - Waste Transport/Eastern & Central Teams,External Contractors Charges,4570,Service Wash VO65 KPX JFC14140,28/02/2020,0000453149,65.00,Revenue,NAYLORS TRANSPORT (LEYLAND) ltd,00114828
South Ribble Council,http://statistics.data.gov.uk/doc/local-authority/30UN,Area 2 - Waste Transport/Eastern & Central Teams,External Contractors Charges,4570,Service Wash VO65 KRE JFC14141,28/02/2020,0000453149,65.00,Revenue,NAYLORS TRANSPORT (LEYLAND) ltd,00114828
South Ribble Council,http://statistics.data.gov.uk/doc/local-authority/30UN,Area 2 - Waste Transport/Eastern & Central Teams,External Contractors Charges,4570,Service Wash YP11 CFM JFC14142,28/02/2020,0000453149,65.00,Revenue,NAYLORS TRANSPORT (LEYLAND) ltd,00114828
South Ribble Council,http://statistics.data.gov.uk/doc/local-authority/30UN,Area 2 - Waste Transport/Eastern & Central Teams,External Contractors Charges,4570,Service Wash PJ62 UCH JFC14143,28/02/2020,0000453149,65.00,Revenue,NAYLORS TRANSPORT (LEYLAND) ltd,00114828
South Ribble Council,http://statistics.data.gov.uk/doc/local-authority/30UN,Area 2 - Waste Transport/Eastern & Central Teams,External Contractors Charges,4570,Service Wash PJ62 UCL JFC14144,28/02/2020,0000453149,65.00,Revenue,NAYLORS TRANSPORT (LEYLAND) ltd,00114828
South Ribble Council,http://statistics.data.gov.uk/doc/local-authority/30UN,Area 2 - Waste Transport/Eastern & Central Teams,External Contractors Charges,4570,Service Wash VO65 KRF JFC14145,28/02/2020,0000453149,65.00,Revenue,NAYLORS TRANSPORT (LEYLAND) ltd,00114828
South Ribble Council,http://statistics.data.gov.uk/doc/local-authority/30UN,Area 2 - Waste Transport/Eastern & Central Teams,External Contractors Charges,4570,Service Wash VK09 AHJ JFC14146,28/02/2020,0000453149,65.00,Revenue,NAYLORS TRANSPORT (LEYLAND) ltd,00114828
South Ribble Council,http://statistics.data.gov.uk/doc/local-authority/30UN,Area 2 - Waste Transport/Eastern & Central Teams,External Contractors Charges,4570,Service Wash PO13 UUM JFC14147,28/02/2020,0000453149,65.00,Revenue,NAYLORS TRANSPORT (LEYLAND) ltd,00114828
South Ribble Council,http://statistics.data.gov.uk/doc/local-authority/30UN,Area 2 - Waste Transport/Eastern & Central Teams,External Contractors Charges,4570,Service Wash 4.12.19 PJ62 UCH - JFC13925,28/02/2020,0000453150,65.00,Revenue,NAYLORS TRANSPORT (LEYLAND) ltd,00114828
South Ribble Council,http://statistics.data.gov.uk/doc/local-authority/30UN,Area 2 - Waste Transport/Eastern & Central Teams,External Contractors Charges,4570,Service Wash 9.12.19 VO65 KRF - JFC13926,28/02/2020,0000453150,65.00,Revenue,NAYLORS TRANSPORT (LEYLAND) ltd,00114828
South Ribble Council,http://statistics.data.gov.uk/doc/local-authority/30UN,Area 2 - Waste Transport/Eastern & Central Teams,External Contractors Charges,4570,Service Wash 10.12.19 YP11 CFM JFC13927,28/02/2020,0000453150,65.00,Revenue,NAYLORS TRANSPORT (LEYLAND) ltd,00114828
South Ribble Council,http://statistics.data.gov.uk/doc/local-authority/30UN,Area 2 - Waste Transport/Eastern & Central Teams,External Contractors Charges,4570,Service Wash 16.12.19 VK09 AHJ - JFC13928,28/02/2020,0000453150,65.00,Revenue,NAYLORS TRANSPORT (LEYLAND) ltd,00114828
South Ribble Council,http://statistics.data.gov.uk/doc/local-authority/30UN,Area 2 - Waste Transport/Eastern & Central Teams,External Contractors Charges,4570,Service Wash 17.12.19 MX04 YNL - JFC13929,28/02/2020,0000453150,65.00,Revenue,NAYLORS TRANSPORT (LEYLAND) ltd,00114828
South Ribble Council,http://statistics.data.gov.uk/doc/local-authority/30UN,Area 2 - Waste Transport/Eastern & Central Teams,External Contractors Charges,4570,Service Wash 18.12.19 PJ62 UCM - JFC13930,28/02/2020,0000453150,65.00,Revenue,NAYLORS TRANSPORT (LEYLAND) ltd,00114828
South Ribble Council,http://statistics.data.gov.uk/doc/local-authority/30UN,Area 2 - Waste Transport/Eastern & Central Teams,External Contractors Charges,4570,Service Wash 20.12.19 PO13 UUM - JFC13931,28/02/2020,0000453150,65.00,Revenue,NAYLORS TRANSPORT (LEYLAND) ltd,00114828
South Ribble Council,http://statistics.data.gov.uk/doc/local-authority/30UN,Property Services,Fixtures and Fittings,2611,Please supply 3 x new desk for the Facilities Officers Room as per NAME REDACTED - option 2 - 1200 x 600  195.95 each,10/02/2020,0000452594,527.85,Revenue,Northern Storage & Interiors Ltd,132814
South Ribble Council,http://statistics.data.gov.uk/doc/local-authority/30UN,Development Enterprise & Comm Mgnt,Advertising,4842,Printing of pictures - 600 copying and enlargement for exhibition as specified by NAME REDACTED and to be provided by 20th March 2020,26/02/2020,0000452871,600.00,Revenue,NORWYN LTD,00118303
South Ribble Council,http://statistics.data.gov.uk/doc/local-authority/30UN,Area 1 - Penwortham Western Parishes,Professional Fees,4514,DEPLOYMENT OF OFFICERS JANUARY 2020,19/02/2020,0000452901,"1,462.67",Revenue,NSL LTD,00116868
South Ribble Council,http://statistics.data.gov.uk/doc/local-authority/30UN,Area 1 - Penwortham Western Parishes,Other Misc,4855,CASH COLLECTIONS AND RINGO TRANSACTIONS JANUARY 2020,19/02/2020,0000452901,361.87,Revenue,NSL LTD,00116868
South Ribble Council,http://statistics.data.gov.uk/doc/local-authority/30UN,Area 1 - Penwortham Western Parishes,Other Misc,4855,RINGO CONVENIENCE CHARGE JANUARY 2020,19/02/2020,0000452901,281.84,Revenue,NSL LTD,00116868
South Ribble Council,http://statistics.data.gov.uk/doc/local-authority/30UN,Area 1 - Penwortham Western Parishes,Professional Fees,4526,PRICE PER CONTRACTED ITEMISED COLLECTION - OTHER,19/02/2020,0000452901,33.85,Revenue,NSL LTD,00116868
South Ribble Council,http://statistics.data.gov.uk/doc/local-authority/30UN,Information Services,Peripherals,4247,"1yr KACE systems Addtl & Appliance Managed Computer Maintenance For Period: 20/04/2020 - 30/04/2021
",14/02/2020,0000452753,"1,341.50",Revenue,NVIRON LTD,00028781
South Ribble Council,http://statistics.data.gov.uk/doc/local-authority/30UN,Property Services,Capital Expenditure,C230,meter removal,21/02/2020,0000452870,270.36,Revenue,OPUS ENERGY LIMITED,130898
South Ribble Council,http://statistics.data.gov.uk/doc/local-authority/30UN,Democratic Services,Training Expense-Course Fees,1406,Mop up Safeguarding Training for Members on 3 February 6pm-8pm,12/02/2020,0000452714,250.00,Revenue,P THRELFALL SAFEGUARDING LTD,130382
South Ribble Council,http://statistics.data.gov.uk/doc/local-authority/30UN,HR & Communications,Professional Fees,4520,Remaining cost,14/02/2020,0000452754,"1,100.00",Revenue,Pearson Insight Ltd,132967
South Ribble Council,http://statistics.data.gov.uk/doc/local-authority/30UN,Healthy Communities,Materials General,4040,"Event Management Services for South Ribble Sports Awards Payment one July 19 � March 2020 Amount 1,750.00",14/02/2020,0000452840,"1,750.00",Revenue,Pennine Events,131103
South Ribble Council,http://statistics.data.gov.uk/doc/local-authority/30UN,Healthy Communities,Materials General,4040,Payment of goods for the 2019 Sports Awards 1420.00,26/02/2020,0000453136,"1,420.00",Revenue,Pennine Events,131103
South Ribble Council,http://statistics.data.gov.uk/doc/local-authority/30UN,HR & Communications,Training Expense-Course Fees,1408,100 X FLU VACCINE VOUCHERS,19/02/2020,0000452869,831.25,Revenue,People Asset Management,132492
South Ribble Council,http://statistics.data.gov.uk/doc/local-authority/30UN,Area 2 - Waste Transport/Eastern & Central Teams,Materials General,4040,1 X 205LT RED ANTIFREEZE @ 1.45 PPL,21/02/2020,0000453092,297.25,Revenue,PILKINGTON OILS,00113531
South Ribble Council,http://statistics.data.gov.uk/doc/local-authority/30UN,Planning,Other Misc,485R,refund plann app,10/02/2020,0000452565,462.00,Revenue,Planning Portal,132936
South Ribble Council,http://statistics.data.gov.uk/doc/local-authority/30UN,Environmental Health,Peripherals,4273,"8,000 contribution from South Ribble Borough Council for the Domestic Abuse element of Lancashire Victim Services� per NAME REDACTED",05/02/2020,0000452645,"8,000.00",Revenue,POLICE & CRIME COMMISSIONER LANCS POLICE,00026851
South Ribble Council,http://statistics.data.gov.uk/doc/local-authority/30UN,Housing,Cap Grant- Improve Grants,C570,DFG WORKS TO BATHROOM AT ADDRESS REDACTED - ACCENT PROPERTY 50% FUNDED COST OF GRANT 1672.50,12/02/2020,0000452755,"1,672.50",Revenue,Positive Plumbing Solutions Ltd,131562
South Ribble Council,http://statistics.data.gov.uk/doc/local-authority/30UN,Area 2 - Waste Transport/Eastern & Central Teams,External Contractors Charges,4570,SPEC REPAIR VK09AHJ JFC 14163,28/02/2020,0000453109,910.53,Revenue,POWERTRAIN PRODUCTS LIMITED,133046
South Ribble Council,http://statistics.data.gov.uk/doc/local-authority/30UN,Healthy Communities,Materials General,4040,"Calypso Ergo Chair With Folding Arms - Royal Blue, Calypso Ergo Chair - Royal Blue Total cost 511.00 including VAT 425.84 ( no VAT )",05/02/2020,0000452647,439.99,Revenue,PREMIER OFFICE SUPPLES (UK) LTD,00090159
South Ribble Council,http://statistics.data.gov.uk/doc/local-authority/30UN,Information Services,Stationery,4133,"50,000 sheets Evolution Everyday A4 80gm 2500 sheets Evolution Everyday A3 80gm 1000 sheets white A4 card 200gsm Prem Elements Fire",21/02/2020,0000453094,339.38,Revenue,PREMIER PAPER GROUP LTD,00022606
South Ribble Council,http://statistics.data.gov.uk/doc/local-authority/30UN,Democratic Services,Other Misc,4423,"APPROXIMATELY 84,000 UKPGE POLL CARDS (REF 6264)",12/02/2020,0000452688,"7,410.53",Revenue,PRINT IMAGE NETWORK LTD,00089199
South Ribble Council,http://statistics.data.gov.uk/doc/local-authority/30UN,Democratic Services,Other Misc,4970,"PLEASE PROVIDE 12,000 HEF OUTER ENVELOPES - ORDER REF - 6380",12/02/2020,0000452689,473.00,Revenue,PRINT IMAGE NETWORK LTD,00089199
South Ribble Council,http://statistics.data.gov.uk/doc/local-authority/30UN,Democratic Services,Other Misc,4421,UKPGE POLLING STATION BALLOT BOOKS (REF 6417) APPROX 586 ORDINARY BOOKS APPROX 55 TENDERED BOOKS,21/02/2020,0000452971,"5,355.40",Revenue,PRINT IMAGE NETWORK LTD,00089199
South Ribble Council,http://statistics.data.gov.uk/doc/local-authority/30UN,Democratic Services,Other Misc,4422,APPROXIMATELY 23300 X UKPGE VOTER PEEL CONNECT POSTAL VOTE PACKS (UK) (REF 6309),21/02/2020,0000452972,"17,731.51",Revenue,PRINT IMAGE NETWORK LTD,00089199
South Ribble Council,http://statistics.data.gov.uk/doc/local-authority/30UN,Homelessness,Contributions,4730,Agreed payment of arrears NAME REDACTED,05/02/2020,0000452629,405.20,Revenue,PROGRESS HOUSING GRP ref:DNSOU001,00030135
South Ribble Council,http://statistics.data.gov.uk/doc/local-authority/30UN,Homelessness,Contributions,4730,clear static rent arrears re NAME REDACTED tfr Nov 2018 ADDRESS REDACTED,05/02/2020,0000452630,299.35,Revenue,PROGRESS HOUSING GRP ref:DNSOU001,00030135
South Ribble Council,http://statistics.data.gov.uk/doc/local-authority/30UN,Homelessness,Contractors Charges 5,5313,Agreed interim void loss,21/02/2020,0000452868,"2,479.30",Revenue,PROGRESS HOUSING GRP ref:DNSOU001,00030135
South Ribble Council,http://statistics.data.gov.uk/doc/local-authority/30UN,Property Services,Rep & Maint Premises,2024,Please carry out works to the door and decoration works  to The Hutton Pavillion as per quote LRSQ2855 as per NAME REDACTED,21/02/2020,0000453046,130.00,Revenue,PSR & Sons Joiners & Building Contractors,132887
South Ribble Council,http://statistics.data.gov.uk/doc/local-authority/30UN,Property Services,Rep & Maint Premises,2024,materials,21/02/2020,0000453046,500.00,Revenue,PSR & Sons Joiners & Building Contractors,132887
South Ribble Council,http://statistics.data.gov.uk/doc/local-authority/30UN,Property Services,Rep & Maint Premises,2020,Please carry out works to Penwortham Holme as per Quote LRS Q 2917 dated 3rd February 2020 as per NAME REDACTED,21/02/2020,0000453047,60.00,Revenue,PSR & Sons Joiners & Building Contractors,132887
South Ribble Council,http://statistics.data.gov.uk/doc/local-authority/30UN,Property Services,Rep & Maint Premises,2020,materials & lagging,21/02/2020,0000453047,660.00,Revenue,PSR & Sons Joiners & Building Contractors,132887
South Ribble Council,http://statistics.data.gov.uk/doc/local-authority/30UN,Property Services,Professional Fees,4510,Consultancy for an additional 0.5 days to provide a short assessment of the Air BnB potential of the North Lodge within Worden Park.,21/02/2020,0000453023,475.00,Revenue,Purcell Architecture Limited,132602
South Ribble Council,http://statistics.data.gov.uk/doc/local-authority/30UN,Area 3 - Parks/Leyland East West,Contract Hire & Lease Costs,3212,8 TONNE EXCAVATOR FOR 1 WEEK HIRE DELIVERY TO WORDEN PARK ON MONDAY 6TH JANUARY 2020,21/02/2020,0000452273,640.00,Revenue,Readyplant Limited,131535
South Ribble Council,http://statistics.data.gov.uk/doc/local-authority/30UN,Area 3 - Parks/Leyland East West,Contract Hire & Lease Costs,3212,Fuel Charge,21/02/2020,0000452273,40.50,Revenue,Readyplant Limited,131535
South Ribble Council,http://statistics.data.gov.uk/doc/local-authority/30UN,Property Services,Rep & Maint Premises,2020,Subject: Re: Quotation footpath Worden park Revised pricing for top coating ice cream parlour footpath on Worden park as per NAME REDACTED,05/02/2020,0000452591,240.00,Revenue,RED ROSE BUILDING MAINTENANCE,00085410
South Ribble Council,http://statistics.data.gov.uk/doc/local-authority/30UN,Property Services,Rep & Maint Premises,2020,Materials,05/02/2020,0000452591,560.00,Revenue,RED ROSE BUILDING MAINTENANCE,00085410
South Ribble Council,http://statistics.data.gov.uk/doc/local-authority/30UN,Property Services,Rep & Maint Premises,2020,"Please carry out works to inspect and replacement of collapsed pipes/gulleys at the Leyland Museum, Church Road per NAME REDACTED",14/02/2020,0000452757,330.00,Revenue,RED ROSE BUILDING MAINTENANCE,00085410
South Ribble Council,http://statistics.data.gov.uk/doc/local-authority/30UN,Property Services,Rep & Maint Premises,2020,materials,14/02/2020,0000452757,170.00,Revenue,RED ROSE BUILDING MAINTENANCE,00085410
South Ribble Council,http://statistics.data.gov.uk/doc/local-authority/30UN,Property Services,Rep & Maint Premises,2020,Please attend Penwortham Holme and repair the car park as per NAME REDACTED instruction,28/02/2020,0000453102,480.00,Revenue,RED ROSE BUILDING MAINTENANCE,00085410
South Ribble Council,http://statistics.data.gov.uk/doc/local-authority/30UN,Property Services,Rep & Maint Premises,2020,materials,28/02/2020,0000453102,720.00,Revenue,RED ROSE BUILDING MAINTENANCE,00085410
South Ribble Council,http://statistics.data.gov.uk/doc/local-authority/30UN,Property Services,Rep & Maint Premises,2020,"Higher Walton Community Centre replace 2 manholes, replace gulley lid, replace rodding eye cover",28/02/2020,0000453194,240.00,Revenue,RED ROSE BUILDING MAINTENANCE,00085410
South Ribble Council,http://statistics.data.gov.uk/doc/local-authority/30UN,Property Services,Rep & Maint Premises,2020,materials,28/02/2020,0000453194,150.00,Revenue,RED ROSE BUILDING MAINTENANCE,00085410
South Ribble Council,http://statistics.data.gov.uk/doc/local-authority/30UN,Property Services,Rep & Maint Premises,2020,Bamber Bridge Toilets lift and relay flags and concreted rat holes,28/02/2020,0000453195,210.00,Revenue,RED ROSE BUILDING MAINTENANCE,00085410
South Ribble Council,http://statistics.data.gov.uk/doc/local-authority/30UN,Property Services,Rep & Maint Premises,2020,materials,28/02/2020,0000453195,40.00,Revenue,RED ROSE BUILDING MAINTENANCE,00085410
South Ribble Council,http://statistics.data.gov.uk/doc/local-authority/30UN,Property Services,Rep & Maint Premises,2020,"Penwortham Holme Pavilion Construct new path leading to toilets, lagged pipes, put manhole lid on existing manhole",28/02/2020,0000453196,240.00,Revenue,RED ROSE BUILDING MAINTENANCE,00085410
South Ribble Council,http://statistics.data.gov.uk/doc/local-authority/30UN,Property Services,Rep & Maint Premises,2020,materials,28/02/2020,0000453196,160.00,Revenue,RED ROSE BUILDING MAINTENANCE,00085410
South Ribble Council,http://statistics.data.gov.uk/doc/local-authority/30UN,Property Services,Rep & Maint Premises,2024,Bamber Bridge Pavilion - Lift and relay flags and concrete rat holes,28/02/2020,0000453197,200.00,Revenue,RED ROSE BUILDING MAINTENANCE,00085410
South Ribble Council,http://statistics.data.gov.uk/doc/local-authority/30UN,Property Services,Rep & Maint Premises,2024,materials,28/02/2020,0000453197,50.00,Revenue,RED ROSE BUILDING MAINTENANCE,00085410
South Ribble Council,http://statistics.data.gov.uk/doc/local-authority/30UN,Property Services,Rep & Maint Premises,2024,"Holland House Pavilion replace missing guttering, fit new clips around building for guttering, lowered manhole cover and pointed up",28/02/2020,0000453199,240.00,Revenue,RED ROSE BUILDING MAINTENANCE,00085410
South Ribble Council,http://statistics.data.gov.uk/doc/local-authority/30UN,Property Services,Rep & Maint Premises,2024,materials,28/02/2020,0000453199,60.00,Revenue,RED ROSE BUILDING MAINTENANCE,00085410
South Ribble Council,http://statistics.data.gov.uk/doc/local-authority/30UN,Information Services,Lease Rental Charges,4036,COPIERS,21/02/2020,0000453002,"4,638.79",Revenue,RICOH (UK) LTD,00082976
South Ribble Council,http://statistics.data.gov.uk/doc/local-authority/30UN,Information Services,Lease Rental Charges,4036,COPIERS,21/02/2020,0000453002,"6,044.35",Revenue,RICOH (UK) LTD,00082976
South Ribble Council,http://statistics.data.gov.uk/doc/local-authority/30UN,Information Services,Lease Rental Charges,4036,EVQs,21/02/2020,0000453067,"1,492.80",Revenue,RICOH (UK) LTD,00082976
South Ribble Council,http://statistics.data.gov.uk/doc/local-authority/30UN,Information Services,Lease Rental Charges,4036,1/2/20 to 30/4/20,21/02/2020,0000453069,334.19,Revenue,RICOH (UK) LTD,00082976
South Ribble Council,http://statistics.data.gov.uk/doc/local-authority/30UN,Information Services,Stationery,413A,1/2/20 to 31/1/20,21/02/2020,0000453069,217.13,Revenue,RICOH (UK) LTD,00082976
South Ribble Council,http://statistics.data.gov.uk/doc/local-authority/30UN,Information Services,Postage,4295,services 8/2/20,14/02/2020,0000452808,351.56,Revenue,ROYAL MAIL GROUP PLC,00033543
South Ribble Council,http://statistics.data.gov.uk/doc/local-authority/30UN,Information Services,Postage,4295,compensation,14/02/2020,0000452808,-15.00,Revenue,ROYAL MAIL GROUP PLC,00033543
South Ribble Council,http://statistics.data.gov.uk/doc/local-authority/30UN,Democratic Services,Other Misc,4422,"ROYAL MAIL SERVICES: TIMED DELIVEREY, POSTAL VOTING ADDITIONAL SELECTIONS, POSTAL VOTE LICENCE FEE",21/02/2020,0000452843,876.80,Revenue,ROYAL MAIL GROUP PLC,00033543
South Ribble Council,http://statistics.data.gov.uk/doc/local-authority/30UN,Democratic Services,Other Misc,4422,ROYAL MAIL SERVICES FOR UKPGE -  RESPONSE PLUS SERVICE,21/02/2020,0000452844,723.58,Revenue,ROYAL MAIL GROUP PLC,00033543
South Ribble Council,http://statistics.data.gov.uk/doc/local-authority/30UN,HR & Communications,Training Expense-Course Fees,1402,"NAME REDACTED TO ATTEND `DEVELOPMENT MANAGEMENT UPDATE` ON 7 OCTOBER 2020 AT THE EXCHANGE, PRESTON",26/02/2020,0000453107,80.75,Revenue,RTPI,00033491
South Ribble Council,http://statistics.data.gov.uk/doc/local-authority/30UN,HR & Communications,Training Expense-Course Fees,1402,"NAME REDACTED TO ATTEND `DELIVERING STRATEGIC SITES` ON 21 OCTOBER 2020 AT INNSIDE, MANCHESTER",26/02/2020,0000453107,80.75,Revenue,RTPI,00033491
South Ribble Council,http://statistics.data.gov.uk/doc/local-authority/30UN,HR & Communications,Training Expense-Course Fees,1402,"NAME REDACTED TO ATTEND `DELIVERING STRATEGIC SITES` ON 21 OCTOBER 2020 AT INNSIDE, MANCHESTER",26/02/2020,0000453107,80.75,Revenue,RTPI,00033491
South Ribble Council,http://statistics.data.gov.uk/doc/local-authority/30UN,HR & Communications,Training Expense-Course Fees,1402,"NAME REDACTED TO ATTEND `HEALTHY PLANNING, HEALTHY PLACES` ON 25 JUNE 2020 AT INNSIDE, MANCHESTER",26/02/2020,0000453107,80.75,Revenue,RTPI,00033491
South Ribble Council,http://statistics.data.gov.uk/doc/local-authority/30UN,HR & Communications,Training Expense-Course Fees,1402,"NAME REDACTED TO ATTEND `PLANNING LAW UPDATE (2) ON 28 SEPTEMBER 2020 AT INNSIDE, MANCHESTER",26/02/2020,0000453107,80.75,Revenue,RTPI,00033491
South Ribble Council,http://statistics.data.gov.uk/doc/local-authority/30UN,HR & Communications,Training Expense-Course Fees,1402,"NAME REDACTED TO ATTEND `DEVELOPMENT MANAGEMENT UPDATE` ON 7 OCTOBER 2020 AT THE EXCHANGE, PRESTON",26/02/2020,0000453107,80.75,Revenue,RTPI,00033491
South Ribble Council,http://statistics.data.gov.uk/doc/local-authority/30UN,HR & Communications,Training Expense-Course Fees,1402,"NAME REDACTED TO ATTEND `HOUSING & DECISION MAKING` ON 23 SEPTEMBER 2020 AT INNSIDE, MANCHESTER",26/02/2020,0000453107,97.75,Revenue,RTPI,00033491
South Ribble Council,http://statistics.data.gov.uk/doc/local-authority/30UN,HR & Communications,Training Expense-Course Fees,1402,"NAME REDACTED TO ATTEND `GREEN INFRASTRUCTURE & LANDSCAPE` ON 12 MAY 2020 AT BROCKHOLES, PRESTON",26/02/2020,0000453107,80.75,Revenue,RTPI,00033491
South Ribble Council,http://statistics.data.gov.uk/doc/local-authority/30UN,HR & Communications,Training Expense-Course Fees,1402,"NAME REDACTED TO ATTEND `BEYOND RETAIL - RETHINKING OUR TOWN CENTRES` ON 16 SEPTEMBER 2020 AT THE CASTLEFIELD ROOMS, MANCHESTER",26/02/2020,0000453107,80.75,Revenue,RTPI,00033491
South Ribble Council,http://statistics.data.gov.uk/doc/local-authority/30UN,HR & Communications,Training Expense-Course Fees,1402,"NAME REDACTED TO ATTEND `HERITAGE & REGENERATION ON 29 APRIL 2020 AT INNSIDE, MANCHESTER",26/02/2020,0000453107,80.75,Revenue,RTPI,00033491
South Ribble Council,http://statistics.data.gov.uk/doc/local-authority/30UN,HR & Communications,Training Expense-Course Fees,1402,"NAME REDACTED TO ATTEND `PLAN MAKING` ON 10 NOVEMBER 2020 AT HOLIDAY INN, MANCHESTER",26/02/2020,0000453107,80.75,Revenue,RTPI,00033491
South Ribble Council,http://statistics.data.gov.uk/doc/local-authority/30UN,HR & Communications,Training Expense-Course Fees,1402,NAME REDACTED ATTEND `HOW WILL PLANNING AND DEVELOPMENT RESPOND TO CLIMATE CHANGE AND IS IT AN EMERGENCY?` ,26/02/2020,0000453107,80.75,Revenue,RTPI,00033491
South Ribble Council,http://statistics.data.gov.uk/doc/local-authority/30UN,HR & Communications,Training Expense-Course Fees,1402,"NAME REDACTED TO ATTEND `HOUSING FOR PLAN MAKERS` ON 1 APRIL 2020 AT THE EXCHANGE, PRESTON",26/02/2020,0000453107,80.75,Revenue,RTPI,00033491
South Ribble Council,http://statistics.data.gov.uk/doc/local-authority/30UN,Area 2 - Waste Transport/Eastern & Central Teams,Materials General,4040,VALVE BLOCK PJ62UCL JFC 14045,10/02/2020,0000452674,"2,054.11",Revenue,RTS Muni,132454
South Ribble Council,http://statistics.data.gov.uk/doc/local-authority/30UN,Area 2 - Waste Transport/Eastern & Central Teams,Materials General,4040,1 x 1000 ltr Energise Premium Hi- Foaming TFR with Wax,21/02/2020,0000453079,911.15,Revenue,Saanro International Ltd,132788
South Ribble Council,http://statistics.data.gov.uk/doc/local-authority/30UN,Property Services,Professional Fees,4510,"South Ribble Borough Council for the management of the asset mgmt portfolio, McKenzie arms business case and review of the asset portfolio.",14/02/2020,0000452484,"1,300.00",Revenue,Sanderson Weatherall LLP,132534
South Ribble Council,http://statistics.data.gov.uk/doc/local-authority/30UN,Property Services,Energy Costs,2304,19/11/19 to 28/11/19,14/02/2020,0000452792,306.21,Revenue,SCOTTISH HYDRO ELECTRIC,130051
South Ribble Council,http://statistics.data.gov.uk/doc/local-authority/30UN,Property Services,Energy Costs,2307,CCL,14/02/2020,0000452792,17.26,Revenue,SCOTTISH HYDRO ELECTRIC,130051
South Ribble Council,http://statistics.data.gov.uk/doc/local-authority/30UN,Property Services,Energy Costs,2303,2/11/19 to 28/11/19,14/02/2020,0000452795,249.39,Revenue,SCOTTISH HYDRO ELECTRIC,130051
South Ribble Council,http://statistics.data.gov.uk/doc/local-authority/30UN,Property Services,Energy Costs,2307,CCL,14/02/2020,0000452795,10.57,Revenue,SCOTTISH HYDRO ELECTRIC,130051
South Ribble Council,http://statistics.data.gov.uk/doc/local-authority/30UN,Area 3 - Parks/Leyland East West,Capital Expenditure,C230,PROTECTIVE FENCING FOR NEW WOODLAND PLANTING AREAS AT WORDEN & FARINGTON PARKS,12/02/2020,0000452791,"7,319.00",Revenue,Singleton Landwork Ltd,131959
South Ribble Council,http://statistics.data.gov.uk/doc/local-authority/30UN,Information Services,Peripherals,4248,13 x Acrobat for Teams renewal,10/02/2020,0000452699,291.82,Revenue,SOFTCAT LIMITED,130963
South Ribble Council,http://statistics.data.gov.uk/doc/local-authority/30UN,Information Services,Peripherals,4248,Engage Support & Maintenance annual renewal for period 01/04/20 - 31/03/21,10/02/2020,0000452682,"6,525.18",Revenue,SORCE LTD,00080509
South Ribble Council,http://statistics.data.gov.uk/doc/local-authority/30UN,Shared Financial Services,Balance Sheet,0030,ded from payroll,21/02/2020,0000451991,"1,525.77",Revenue,SOUTH RIBBLE LABOUR PARTY LOCAL GOVERNM,00120663
South Ribble Council,http://statistics.data.gov.uk/doc/local-authority/30UN,Shared Financial Services,Balance Sheet,0030,monthly deductions,21/02/2020,0000452681,"1,525.77",Revenue,SOUTH RIBBLE LABOUR PARTY LOCAL GOVERNM,00120663
South Ribble Council,http://statistics.data.gov.uk/doc/local-authority/30UN,Shared Financial Services,Balance Sheet,0030,monthly deductions,12/02/2020,0000452680,403.62,Revenue,ST CATHERINES HOSPICE PROMOTIONS LTD,00057749
South Ribble Council,http://statistics.data.gov.uk/doc/local-authority/30UN,Development Enterprise & Comm Mgnt,Other Misc,4851,Catering for the South Ribble Community Awards on 24th January 2020,12/02/2020,0000452609,"2,310.00",Revenue,St Catherines Social Enterprise Ltd,132366
South Ribble Council,http://statistics.data.gov.uk/doc/local-authority/30UN,Democratic Services,Other Misc,4421,Use of the venue for the Parliamentary Election on 12 December 2019.  Access will be required from 6.15am until 10.15pm. ,05/02/2020,0000452514,330.00,Revenue,ST PAULS FARINGTON P C C,00046103
South Ribble Council,http://statistics.data.gov.uk/doc/local-authority/30UN,Neighbourhood Admin & Support,Vehicle Running Costs,3132,17500LT X DIESEL (TANK 1) @ 97.48 PPL,19/02/2020,0000452962,"15,791.76",Revenue,Standard Fuel Oils LtdMain,131556
South Ribble Council,http://statistics.data.gov.uk/doc/local-authority/30UN,Legal,Legal,4821,PROFESSIONAL SERVICES IN REFERENCE TO ADDRESS REDACTED - APPLICATION OF POLICY B5,19/02/2020,0000452829,"1,000.00",Revenue,STEPHANIE HALL,132966
South Ribble Council,http://statistics.data.gov.uk/doc/local-authority/30UN,Development Enterprise & Comm Mgnt,Other Misc,485K,South Ribble Apprentice Factory materials 2 x 800cm wide roller banner  120.00 each Apprentice Factory business cards � NAME REDACTED,10/02/2020,0000452660,360.00,Revenue,STONE CREATE LTD,130896
South Ribble Council,http://statistics.data.gov.uk/doc/local-authority/30UN,Development Enterprise & Comm Mgnt,Other Misc,485K,South Ribble Apprentice Factory materials Artwork design for Soft Touch Monolith Stand (1200MM x 2300MM) and fabric counter (800 x 530mm),21/02/2020,0000452761,"2,010.00",Revenue,STONE CREATE LTD,130896
South Ribble Council,http://statistics.data.gov.uk/doc/local-authority/30UN,Area 1 - Penwortham Western Parishes,External Contractors Charges,4570,"TOPOGRAPHICAL SURVEY OF TARN WOOD, PENWORTHAM FOR DRAINAGE IMPROVEMENT.",12/02/2020,0000452554,"1,650.00",Revenue,SURVEY OPERATIONS LTD,00060697
South Ribble Council,http://statistics.data.gov.uk/doc/local-authority/30UN,Information Services,Peripherals,4246,Retainer for Services for 4 days per month for 6 months @ 650 per day,05/02/2020,0000452661,"2,600.00",Revenue,TechAlign,132535
South Ribble Council,http://statistics.data.gov.uk/doc/local-authority/30UN,Information Services,Agency Fees,1121,Technical Support 2 days per week starting w/c 3rd February 2020 for 8 weeks Cost - 375 per day � Total - 6000,10/02/2020,0000452675,"3,000.00",Revenue,TechAlign,132535
South Ribble Council,http://statistics.data.gov.uk/doc/local-authority/30UN,Area 2 - Waste Transport/Eastern & Central Teams,External Contractors Charges,4570,"Spec Repair, PJ62 UCM, JFC13903 (NAME REDACTED)",10/02/2020,0000452280,"3,761.33",Revenue,TERBERG MATEC UK LTD,00058625
South Ribble Council,http://statistics.data.gov.uk/doc/local-authority/30UN,Area 2 - Waste Transport/Eastern & Central Teams,Materials General,4040,"2x spring clamps re con, PJ62 UCM, JFC14106. (NAME REDACTED)",14/02/2020,0000452813,820.78,Revenue,TERBERG MATEC UK LTD,00058625
South Ribble Council,http://statistics.data.gov.uk/doc/local-authority/30UN,Area 2 - Waste Transport/Eastern & Central Teams,External Contractors Charges,4570,SPEC REPAIR - YP11CFM - JFC14091,28/02/2020,0000452819,773.65,Revenue,TERBERG MATEC UK LTD,00058625
South Ribble Council,http://statistics.data.gov.uk/doc/local-authority/30UN,HR & Communications,Payroll Suspense,1741,NAME REDACTED - CILEx professional membership subscription fee for 2020 Fellow - Standard,10/02/2020,0000452587,364.00,Revenue,THE CHARTERED INSTITUTE OF LEGAL EXECUTIVES,131354
South Ribble Council,http://statistics.data.gov.uk/doc/local-authority/30UN,HR & Communications,Payroll Suspense,1741,NAME REDACTED - CILEx professional membership subscription fee for 2020 Fellow - Standard,10/02/2020,0000452588,364.00,Revenue,THE CHARTERED INSTITUTE OF LEGAL EXECUTIVES,131354
South Ribble Council,http://statistics.data.gov.uk/doc/local-authority/30UN,Information Services,Peripherals,4247,"TNP Professional Services - 2 days - scope and write out network document. 2 days @ 650 per day, as per quote SQ106500",21/02/2020,0000453074,"1,300.00",Revenue,The Networking People (TNP) Ltd,132331
South Ribble Council,http://statistics.data.gov.uk/doc/local-authority/30UN,HR & Communications,Training Expense-Course Fees,1408,6 SESSIONS OF THERAPY FOR NAME REDACTED,14/02/2020,0000452764,300.00,Revenue,THE THERAPY COMPANY,131955
South Ribble Council,http://statistics.data.gov.uk/doc/local-authority/30UN,Legal,Publications,4142,aldridge R65,19/02/2020,0000452046,528.00,Revenue,THOMSON REUTERS,00034979
South Ribble Council,http://statistics.data.gov.uk/doc/local-authority/30UN,Legal,Publications,4142,ONLINE SUBSCRIPTION FOR WESTLAW UK SERVICES 1 JANUARY - 31 DECEMBER 2020,10/02/2020,0000452434,"10,437.76",Revenue,THOMSON REUTERS,00034979
South Ribble Council,http://statistics.data.gov.uk/doc/local-authority/30UN,Legal,Publications,4142,ONLINE SUBSCRIPTION FOR PRACTICAL LAW SERVICES 1 JANUARY - 31 DECEMBER 2020,10/02/2020,0000452434,"2,685.22",Revenue,THOMSON REUTERS,00034979
South Ribble Council,http://statistics.data.gov.uk/doc/local-authority/30UN,Information Services,Publications,4142,,12/02/2020,0000452698,132.50,Revenue,THOMSON REUTERS,00034979
South Ribble Council,http://statistics.data.gov.uk/doc/local-authority/30UN,Information Services,Publications,4142,,12/02/2020,0000452698,132.50,Revenue,THOMSON REUTERS,00034979
South Ribble Council,http://statistics.data.gov.uk/doc/local-authority/30UN,Information Services,Peripherals,4247,"Category 5e Cabling System, 2nd floor, as per quote ref: TC2679/20",21/02/2020,0000453011,596.00,Revenue,TIS Networks,132417
South Ribble Council,http://statistics.data.gov.uk/doc/local-authority/30UN,Property Services,Energy Costs,2304,31/10/19 to 31/01/20,14/02/2020,0000452725,"3,630.10",Revenue,Total Gas & power Ltd,132995
South Ribble Council,http://statistics.data.gov.uk/doc/local-authority/30UN,Property Services,Energy Costs,2307,CCL,14/02/2020,0000452725,349.80,Revenue,Total Gas & power Ltd,132995
South Ribble Council,http://statistics.data.gov.uk/doc/local-authority/30UN,Property Services,Energy Costs,2304,31/10/19 to 31/1/2020,14/02/2020,0000452726,"2,113.47",Revenue,Total Gas & power Ltd,132995
South Ribble Council,http://statistics.data.gov.uk/doc/local-authority/30UN,Property Services,Energy Costs,2307,CCL,14/02/2020,0000452726,188.17,Revenue,Total Gas & power Ltd,132995
South Ribble Council,http://statistics.data.gov.uk/doc/local-authority/30UN,Property Services,Energy Costs,2304,31/12/19 to 31/1/20,21/02/2020,0000452904,"2,045.99",Revenue,Total Gas & power Ltd,132995
South Ribble Council,http://statistics.data.gov.uk/doc/local-authority/30UN,Property Services,Energy Costs,2307,CCL,21/02/2020,0000452904,205.55,Revenue,Total Gas & power Ltd,132995
South Ribble Council,http://statistics.data.gov.uk/doc/local-authority/30UN,Property Services,Energy Costs,2304,31/10/169 to 31/1/2020,26/02/2020,0000452963,697.52,Revenue,Total Gas & power Ltd,132995
South Ribble Council,http://statistics.data.gov.uk/doc/local-authority/30UN,Property Services,Energy Costs,2304,31/10/19 to 31/1/20,26/02/2020,0000452964,395.47,Revenue,Total Gas & power Ltd,132995
South Ribble Council,http://statistics.data.gov.uk/doc/local-authority/30UN,Property Services,Energy Costs,2303,1/1/20 to 31/1/20,26/02/2020,0000452983,"4,402.05",Revenue,Total Gas & power Ltd,132995
South Ribble Council,http://statistics.data.gov.uk/doc/local-authority/30UN,Property Services,Energy Costs,2307,CCL,26/02/2020,0000452983,246.70,Revenue,Total Gas & power Ltd,132995
South Ribble Council,http://statistics.data.gov.uk/doc/local-authority/30UN,Property Services,Energy Costs,2303,4/11/19 to 3/2/20,26/02/2020,0000452987,387.75,Revenue,Total Gas & power Ltd,132995
South Ribble Council,http://statistics.data.gov.uk/doc/local-authority/30UN,Property Services,Energy Costs,2303,1/1/20 to 31/1/20,26/02/2020,0000452989,815.10,Revenue,Total Gas & power Ltd,132995
South Ribble Council,http://statistics.data.gov.uk/doc/local-authority/30UN,Property Services,Energy Costs,2307,CCL,26/02/2020,0000452989,39.51,Revenue,Total Gas & power Ltd,132995
South Ribble Council,http://statistics.data.gov.uk/doc/local-authority/30UN,Property Services,Energy Costs,2303,1/1/20 to 31/1/20,26/02/2020,0000452996,"2,738.43",Revenue,Total Gas & power Ltd,132995
South Ribble Council,http://statistics.data.gov.uk/doc/local-authority/30UN,Property Services,Energy Costs,2307,CCL,26/02/2020,0000452996,160.14,Revenue,Total Gas & power Ltd,132995
South Ribble Council,http://statistics.data.gov.uk/doc/local-authority/30UN,Property Services,Energy Costs,2303,1/1/20 to 31/1/20,26/02/2020,0000453018,"1,322.80",Revenue,Total Gas & power Ltd,132995
South Ribble Council,http://statistics.data.gov.uk/doc/local-authority/30UN,Property Services,Energy Costs,2307,CCL,26/02/2020,0000453018,65.12,Revenue,Total Gas & power Ltd,132995
South Ribble Council,http://statistics.data.gov.uk/doc/local-authority/30UN,Regeneration,Other Misc,4851,Awards for South Ribble Community Awards on 24th January 2020,26/02/2020,0000453009,645.00,Revenue,TOWNGATE SHOE REPAIRS,132773
South Ribble Council,http://statistics.data.gov.uk/doc/local-authority/30UN,Housing,Cap Expend Other,C750,"SUPPLY AND INSTALL UPVC DOUBLE GLAZING AS PER TENDER SPECIFICATION FOR 2019 /20 COST 50,000.00",21/02/2020,0000452905,"2,049.00",Revenue,TRADE WINDOWS & CONSERVATORIES,00119823
South Ribble Council,http://statistics.data.gov.uk/doc/local-authority/30UN,Housing,Cap Expend Other,C750,"SUPPLY AND INSTALL UPVC DOUBLE GLAZING AS PER TENDER SPECIFICATION FOR 2019 /20 COST 50,000.00",21/02/2020,0000452927,687.00,Revenue,TRADE WINDOWS & CONSERVATORIES,00119823
South Ribble Council,http://statistics.data.gov.uk/doc/local-authority/30UN,Housing,Cap Expend Other,C750,"SUPPLY AND INSTALL UPVC DOUBLE GLAZING AS PER TENDER SPECIFICATION FOR 2019 /20 COST 50,000.00",21/02/2020,0000452928,"1,337.00",Revenue,TRADE WINDOWS & CONSERVATORIES,00119823
South Ribble Council,http://statistics.data.gov.uk/doc/local-authority/30UN,Housing,Cap Expend Other,C750,"SUPPLY AND INSTALL UPVC DOUBLE GLAZING AS PER TENDER SPECIFICATION FOR 2019 /20 COST 50,000.00",21/02/2020,0000452929,650.00,Revenue,TRADE WINDOWS & CONSERVATORIES,00119823
South Ribble Council,http://statistics.data.gov.uk/doc/local-authority/30UN,Housing,Cap Expend Other,C750,"SUPPLY AND INSTALL UPVC DOUBLE GLAZING AS PER TENDER SPECIFICATION FOR 2019 /20 COST 50,000.00",26/02/2020,0000452933,687.00,Revenue,TRADE WINDOWS & CONSERVATORIES,00119823
South Ribble Council,http://statistics.data.gov.uk/doc/local-authority/30UN,Housing,Cap Expend Other,C750,"SUPPLY AND INSTALL UPVC DOUBLE GLAZING AS PER TENDER SPECIFICATION FOR 2019 /20 COST 50,000.00",21/02/2020,0000452934,650.00,Revenue,TRADE WINDOWS & CONSERVATORIES,00119823
South Ribble Council,http://statistics.data.gov.uk/doc/local-authority/30UN,Housing,Cap Expend Other,C750,"SUPPLY AND INSTALL UPVC DOUBLE GLAZING AS PER TENDER SPECIFICATION FOR 2019 /20 COST 50,000.00",21/02/2020,0000452935,914.00,Revenue,TRADE WINDOWS & CONSERVATORIES,00119823
South Ribble Council,http://statistics.data.gov.uk/doc/local-authority/30UN,Housing,Cap Expend Other,C750,"SUPPLY AND INSTALL UPVC DOUBLE GLAZING AS PER TENDER SPECIFICATION FOR 2019 /20 COST 50,000.00",26/02/2020,0000453171,"1,337.00",Revenue,TRADE WINDOWS & CONSERVATORIES,00119823
South Ribble Council,http://statistics.data.gov.uk/doc/local-authority/30UN,Housing,Cap Expend Other,C750,"SUPPLY AND INSTALL UPVC DOUBLE GLAZING AS PER TENDER SPECIFICATION FOR 2019 /20 COST 50,000.00",26/02/2020,0000453184,650.00,Revenue,TRADE WINDOWS & CONSERVATORIES,00119823
South Ribble Council,http://statistics.data.gov.uk/doc/local-authority/30UN,Housing,Cap Expend Other,C750,"SUPPLY AND INSTALL UPVC DOUBLE GLAZING AS PER TENDER SPECIFICATION FOR 2019 /20 COST 50,000.00",28/02/2020,0000453229,687.00,Revenue,TRADE WINDOWS & CONSERVATORIES,00119823
South Ribble Council,http://statistics.data.gov.uk/doc/local-authority/30UN,Housing,Cap Expend Other,C750,"SUPPLY AND INSTALL UPVC DOUBLE GLAZING AS PER TENDER SPECIFICATION FOR 2019 /20 COST 50,000.00",28/02/2020,0000453235,650.00,Revenue,TRADE WINDOWS & CONSERVATORIES,00119823
South Ribble Council,http://statistics.data.gov.uk/doc/local-authority/30UN,Housing,Cap Expend Other,C750,"SUPPLY AND INSTALL UPVC DOUBLE GLAZING AS PER TENDER SPECIFICATION FOR 2019 /20 COST 50,000.00",28/02/2020,0000453236,"2,124.00",Revenue,TRADE WINDOWS & CONSERVATORIES,00119823
South Ribble Council,http://statistics.data.gov.uk/doc/local-authority/30UN,Development Enterprise & Comm Mgnt,Other Misc,485K, North West 2020/Commercial Property Monthly -  editorial and design a full page advert to champion�s South Ribble�s commercial property offering,21/02/2020,0000452767,675.00,Revenue,TWA Marketing and Communications Ltd,132818
South Ribble Council,http://statistics.data.gov.uk/doc/local-authority/30UN,Regeneration,Other Misc,4851,Hire of snow machine for Leyland Festival 23rd November 2019,05/02/2020,0000452662,300.00,Revenue,UK Media Events Ltd,132263
South Ribble Council,http://statistics.data.gov.uk/doc/local-authority/30UN,Regeneration,Other Misc,4851,Deposit for Leyland`s Music in the Park 4th act for 19 June,05/02/2020,0000452663,"1,250.00",Revenue,UK Media Events Ltd,132263
South Ribble Council,http://statistics.data.gov.uk/doc/local-authority/30UN,Area 1 - Penwortham Western Parishes,External Contractors Charges,4570,Sign cleaning throughout the borough commencing Monday 13th January 2020 for 2 weeks (40 hrs per week @ 18.50 per hour),10/02/2020,0000452664,"1,480.00",Revenue,ULTRA CLEAN CONSERVATORIES,130034
South Ribble Council,http://statistics.data.gov.uk/doc/local-authority/30UN,Property Services,Professional Fees,4510,Surveyor consultancy for the period end 22nd March 2020,21/02/2020,0000452838,"2,077.60",Revenue,Vivid Resourcing,132999
South Ribble Council,http://statistics.data.gov.uk/doc/local-authority/30UN,Property Services,Professional Fees,4510,Surveyor consultancy for the period end 22nd March 2020,21/02/2020,0000452855,"1,853.67",Revenue,Vivid Resourcing,132999
South Ribble Council,http://statistics.data.gov.uk/doc/local-authority/30UN,Property Services,Professional Fees,4510,Surveyor consultancy for the period end 22nd March 2020,21/02/2020,0000452856,"2,029.58",Revenue,Vivid Resourcing,132999
South Ribble Council,http://statistics.data.gov.uk/doc/local-authority/30UN,Information Services,Peripherals,4247,04Feb2020,12/02/2020,0000452728,"4,505.72",Revenue,VODAFONE RE:CABLE & WIRELESS UK,130810
South Ribble Council,http://statistics.data.gov.uk/doc/local-authority/30UN,Information Services,Peripherals,4247,01 Feb 2020,12/02/2020,0000452798,"2,404.20",Revenue,VODAFONE RE:CABLE & WIRELESS UK,130810
South Ribble Council,http://statistics.data.gov.uk/doc/local-authority/30UN,Information Services,Peripherals,4247,26 Jan 2020,12/02/2020,0000452800,523.53,Revenue,VODAFONE RE:CABLE & WIRELESS UK,130810
South Ribble Council,http://statistics.data.gov.uk/doc/local-authority/30UN,Property Services,Water Charges,2511,27/10/19 to 12/2/20,26/02/2020,0000453059,"1,976.52",Revenue,WATER PLUS,00029845
South Ribble Council,http://statistics.data.gov.uk/doc/local-authority/30UN,Property Services,Water Charges,2511,1/4/20 to 31/3/21,28/02/2020,0000453177,"1,844.53",Revenue,WATER PLUS,00029845
South Ribble Council,http://statistics.data.gov.uk/doc/local-authority/30UN,Area 3 - Parks/Leyland East West,Grounds Maint Cntrctrs Chgs,4657,Provision of 8x 22` - 25` Christmas Trees at various locations though out the borough.,21/02/2020,0000453000,"7,685.00",Revenue,WESTFIELD TREE SERVICES LTD,00114226
South Ribble Council,http://statistics.data.gov.uk/doc/local-authority/30UN,Area 3 - Parks/Leyland East West,Operational Furniture & Equip,4019,21 x STANDARD RECTANGULAR PLAQUES,12/02/2020,0000452329,525.00,Revenue,WOODSTOCK SIGNS,00039039
South Ribble Council,http://statistics.data.gov.uk/doc/local-authority/30UN,Planning,Capital Expenditure,C230,Leyland Town Centre Stategy,21/02/2020,0000452530,"17,144.00",Revenue,WYG ENVIRONMENT TRANSPORT LIMITED,130177
South Ribble Council,http://statistics.data.gov.uk/doc/local-authority/30UN,Shared Assurance Services,Employee Related Insurance,1800,"SRBC - ZM Renewal 2020 - Casualty, Motor, Personal accident, Engineering and third party hirers",12/02/2020,0000452321,"151,952.32",Revenue,Zurich Municipal Insurance plc,132190
